Workbook

Sheet Interfaz
C5: POBLACIÓN ASIGNADA SEGÚN CENSOS INEI - RENIEC - PN - CNV - 2019
C10: RED INTEGRADA DE SALUD HUAURA OYÓN
A22: Elaboración: Área de Estadística - RIS Huaura Oyón.
A23: NOTA: LA POBLACION ESTIMADA DE EDADES SIMPLES Y GRUPOS DE EDAD DE DISTRITOS, CORRESPONDEN A CIFRAS REFERENCIALES HASTA OBTENER LAS CIFRAS DE LAS PROYECCIONES DEL INEI
A26: OFICINA DE GESTION DE LA INFORMACIÓN - MINISTERIO DE SALUD
R27: Versión1.030

Sheet Poblacion
C1: 1 | D1: 2 | E1: 3 | F1: 4 | G1: 5 | H1: 6 | I1: 7 | J1: 8 | K1: 9 | L1: 10 | M1: 11 | N1: 12 | O1: 13 | P1: 14 | Q1: 15 | R1: 16 | S1: 17 | T1: 18 | U1: 19 | V1: 20 | W1: 21 | X1: 22 | Y1: 23 | Z1: 24 | AA1: 25 | AB1: 26 | AC1: 27 | AD1: 28 | AE1: 29 | AF1: 30 | AG1: 31 | AH1: 32 | AI1: 33 | AJ1: 34 | AK1: 35 | AL1: 36 | AM1: 37 | AN1: 38 | AO1: 39 | AP1: 40 | AQ1: 41 | AR1: 42 | AS1: 43 | AT1: 44 | AU1: 45 | AV1: 46 | AW1: 47 | AX1: 48 | AY1: 49 | AZ1: 50 | BA1: 51 | BB1: 54 | BC1: 55 | BD1: 56 | BE1: 57 | BI1: 77 | BJ1: 78 | BK1: 79 | BL1: 80 | BM1: 81 | BN1: 82 | BO1: 83 | BP1: 84 | BQ1: 85 | BR1: 86 | BS1: 87 | BT1: 88 | BU1: 89 | BV1: 90 | BW1: 91 | BX1: 92 | BY1: 93 | BZ1: 94 | CA1: 95 | CB1: 96 | CC1: 97 | CD1: 98 | CE1: 99 | CF1: 106 | CG1: 107 | CH1: 108 | CI1: 109 | CJ1: 110 | CK1: 111
C5: N° | E5: DIRECCION DE SALUD | F5: TOTAL GENERAL | H5: TOTAL MASCULINO | I5: TOTAL FEMENINO | K5: EDAD | M5: EDAD | O5: EDAD | Q5: EDAD | S5: EDAD | U5: EDAD | W5: EDAD | Y5: EDAD | AA5: EDAD | AC5: EDAD | AE5: EDAD | AG5: EDAD | AI5: EDAD | AK5: EDAD | AM5: EDAD | AO5: EDAD | AQ5: EDAD | AS5: EDAD | AU5: EDAD | AW5: EDAD | AY5: EDAD | BA5: NACIMIENTOS | BB5: 28 DIAS DE NACIDO | BC5: POB.FEM. TOTAL | BD5: POB.FEMENINA | BG5: GESTANTES | BH5: OTRO GRUPOS ESPECIFICOS EN POBLACION FEMENINA
A6: UBIGEO | E6: PROVINCIA | K6: 0 | M6: 1 | O6: 2 | Q6: 3 | S6: 4 | U6: 5 - 9 | W6: 10 - 14 | Y6: 15 - 19 | AA6: 20 - 24 | AC6: 25 - 29 | AE6: 30 - 34 | AG6: 35 - 39 | AI6: 40 - 44 | AK6: 45 - 49 | AM6: 50 - 54 | AO6: 55 - 59 | AQ6: 60 - 64 | AS6: 65 - 69 | AU6: 70- 74 | AW6: 75 - 79 | AY6: 80 - + | BD6: 10 - 14 Años | BE6: 15 - 19 Años | BF6: 20 - 49 Años | BH6: 12 - 17 Años | BI6: 20 - 44 Años | BJ6: 30 - 49 Años | BK6: 50 - 64 Años
B7: Microredes | D7: RENAES | E7: DISTRITO | K7: M | L7: F | M7: M | N7: F | O7: M | P7: F | Q7: M | R7: F | S7: M | T7: F | U7: M | V7: F | W7: M | X7: F | Y7: M | Z7: F | AA7: M | AB7: F | AC7: M | AD7: F | AE7: M | AF7: F | AG7: M | AH7: F | AI7: M | AJ7: F | AK7: M | AL7: F | AM7: M | AN7: F | AO7: M | AP7: F | AQ7: M | AR7: F | AS7: M | AT7: F | AU7: M | AV7: F | AW7: M | AX7: F | AY7: M | AZ7: F
A8: 150000 | C8: 1 | E8: HUAURA - OYON | F8: 257177 | H8: 127341.1916 | I8: 129835.8084 | K8: 2077.6494 | L8: 2118.3506 | M8: 1720.64625 | N8: 1754.35375 | O8: 1778.08365 | P8: 1812.91635 | Q8: 1999.4157 | R8: 2038.5843 | S8: 2059.32885 | T8: 2099.67115 | U8: 10395.1791 | V8: 10598.8209 | W8: 11587.99545 | X8: 11815.00455 | Y8: 11056.20435 | Z8: 11272.79565 | AA8: 10621.9578 | AB8: 10830.0422 | AC8: 10309.51815 | AD8: 10511.48185 | AE8: 8671.0668 | AF8: 8840.9332 | AG8: 8887.9425 | AH8: 9062.0575 | AI8: 8509.15275 | AJ8: 8675.84725 | AK8: 7133.62605 | AL8: 7273.37395 | AM8: 6542.41695 | AN8: 6670.58305 | AO8: 6124.51035 | AP8: 6244.48965 | AQ8: 4963.87875 | AR8: 5061.12125 | AS8: 4249.3773 | AT8: 4332.6227 | AU8: 3510.11835 | AV8: 3578.88165 | AW8: 2440.59435 | AX8: 2488.40565 | AY8: 2702.5287 | AZ8: 2755.4713 | BA8: 4408 | BB8: 342 | BC8: 130608 | BD8: 11457 | BE8: 11133 | BF8: 55574 | BG8: 6005 | BH8: 13566 | BI8: 46698 | BJ8: 33032 | BK8: 17289
A9: 150800 | C9: 2 | D9: 150800 | E9: PROVINCIA HUAURA | F9: 233117 | H9: 115427.8825 | I9: 117689.1175 | K9: 1932.57045 | L9: 1970.42955 | M9: 1603.79085 | N9: 1635.20915 | O9: 1656.7719 | P9: 1689.2281 | Q9: 1855.8222 | R9: 1892.1778 | S9: 1907.3178 | T9: 1944.6822 | U9: 9276.1401 | V9: 9457.8599 | W9: 10328.829 | X9: 10531.171 | Y9: 10089.67155 | Z9: 10287.32845 | AA9: 9706.9206 | AB9: 9897.0794 | AC9: 9284.0625 | AD9: 9465.9375 | AE9: 7799.6028 | AF9: 7952.3972 | AG9: 7937.2545 | AH9: 8092.7455 | AI9: 7731.2721 | AJ9: 7882.7279 | AK9: 6459.7269 | AL9: 6586.2731 | AM9: 5985.86835 | AN9: 6103.13165 | AO9: 5615.9913 | AP9: 5726.0087 | AQ9: 4569.2442 | AR9: 4658.7558 | AS9: 3838.89795 | AT9: 3914.10205 | AU9: 3181.8339 | AV9: 3244.1661 | AW9: 2185.09695 | AX9: 2227.90305 | AY9: 2481.19665 | AZ9: 2529.80335 | BA9: 3864 | BB9: 303 | BC9: 117765 | BD9: 10207 | BE9: 10157 | BF9: 50206 | BG9: 5261 | BH9: 12261 | BI9: 42202 | BJ9: 29815 | BK9: 15884
A10: 150801 | C10: 3 | D10: 150802 | E10: DISTRITO HUACHO | F10: 62543 | H10: 30968.16645 | I10: 31574.83355 | K10: 467.4216 | L10: 476.5784 | M10: 370.86735 | N10: 378.13265 | O10: 386.217 | P10: 393.783 | Q10: 477.3246 | R10: 486.6754 | S10: 474.84885 | T10: 484.15115 | U10: 2243.0295 | V10: 2286.9705 | W10: 2490.6045 | X10: 2539.3955 | Y10: 2480.20635 | Z10: 2528.79365 | AA10: 2492.08995 | AB10: 2540.91005 | AC10: 2392.5648 | AD10: 2439.4352 | AE10: 2021.69745 | AF10: 2061.30255 | AG10: 2135.0868 | AH10: 2176.9132 | AI10: 2162.32005 | AJ10: 2204.67995 | AK10: 1859.7834 | AL10: 1896.2166 | AM10: 1848.8901 | AN10: 1885.1099 | AO10: 1704.3063 | AP10: 1737.6937 | AQ10: 1357.20615 | AR10: 1383.79385 | AS10: 1160.13645 | AT10: 1182.86355 | AU10: 965.04735 | AV10: 983.95265 | AW10: 689.74395 | AX10: 703.25605 | AY10: 788.77395 | AZ10: 804.22605 | BA10: 928 | BB10: 73 | BC10: 31468 | BD10: 2454 | BE10: 2489 | BF10: 13372 | BG10: 1263 | BH10: 2981 | BI10: 11375 | BJ10: 8278 | BK10: 4974
B11: 00 | C11: 4 | D11: 7639 | E11: HOSPITAL HUACHO | F11: 46907 | H11: 23226.00105 | I11: 23680.99895 | K11: 350.5662 | L11: 357.4338 | M11: 278.2743 | N11: 283.7257 | O11: 289.66275 | P11: 295.33725 | Q11: 357.99345 | R11: 365.00655 | S11: 356.01285 | T11: 362.98715 | U11: 1682.5197 | V11: 1715.4803 | W11: 1867.7058 | X11: 1904.2942 | Y11: 1860.27855 | Z11: 1896.72145 | AA11: 1869.19125 | AB11: 1905.80875 | AC11: 1794.4236 | AD11: 1829.5764 | AE11: 1516.1493 | AF11: 1545.8507 | AG11: 1601.3151 | AH11: 1632.6849 | AI11: 1621.61625 | AJ11: 1653.38375 | AK11: 1394.83755 | AL11: 1422.16245 | AM11: 1386.42 | AN11: 1413.58 | AO11: 1277.98215 | AP11: 1303.01785 | AQ11: 1018.0284 | AR11: 1037.9716 | AS11: 869.97855 | AT11: 887.02145 | AU11: 723.9093 | AV11: 738.0907 | AW11: 517.43175 | AX11: 527.56825 | AY11: 591.70425 | AZ11: 603.29575 | BA11: 696 | BB11: 55 | BC11: 23601 | BD11: 1840 | BE11: 1867 | BF11: 10029 | BG11: 947 | BH11: 2237 | BI11: 8532 | BJ11: 6208 | BK11: 3729
B12: 02 | C12: 5 | D12: 5679 | E12: C.S. MANZANARES | F12: 15636 | H12: 7742.1654 | I12: 7893.8346 | K12: 116.8554 | L12: 119.1446 | M12: 92.59305 | N12: 94.40695 | O12: 96.55425 | P12: 98.44575 | Q12: 119.33115 | R12: 121.66885 | S12: 118.836 | T12: 121.164 | U12: 560.5098 | V12: 571.4902 | W12: 622.8987 | X12: 635.1013 | Y12: 619.9278 | Z12: 632.0722 | AA12: 622.8987 | AB12: 635.1013 | AC12: 598.1412 | AD12: 609.8588 | AE12: 505.54815 | AF12: 515.45185 | AG12: 533.7717 | AH12: 544.2283 | AI12: 540.7038 | AJ12: 551.2962 | AK12: 464.94585 | AL12: 474.05415 | AM12: 462.4701 | AN12: 471.5299 | AO12: 426.32415 | AP12: 434.67585 | AQ12: 339.17775 | AR12: 345.82225 | AS12: 290.1579 | AT12: 295.8421 | AU12: 241.13805 | AV12: 245.86195 | AW12: 172.3122 | AX12: 175.6878 | AY12: 197.0697 | AZ12: 200.9303 | BA12: 232 | BB12: 18 | BC12: 7867 | BD12: 614 | BE12: 622 | BF12: 3343 | BG12: 316 | BH12: 744 | BI12: 2843 | BJ12: 2070 | BK12: 1245
A13: 150802 | C13: 6 | D13: 150802 | E13: DISTRITO AMBAR | F13: 2766 | H13: 1369.5849 | I13: 1396.4151 | K13: 16.8351 | L13: 17.1649 | M13: 10.8933 | N13: 11.1067 | O13: 20.30115 | P13: 20.69885 | Q13: 16.8351 | R13: 17.1649 | S13: 11.8836 | T13: 12.1164 | U13: 154.98195 | V13: 158.01805 | W13: 151.02075 | X13: 153.97925 | Y13: 104.47665 | Z13: 106.52335 | AA13: 108.43785 | AB13: 110.56215 | AC13: 94.0785 | AD13: 95.9215 | AE13: 83.1852 | AF13: 84.8148 | AG13: 83.68035 | AH13: 85.31965 | AI13: 77.2434 | AJ13: 78.7566 | AK13: 80.2143 | AL13: 81.7857 | AM13: 73.77735 | AN13: 75.22265 | AO13: 66.3501 | AP13: 67.6499 | AQ13: 59.91315 | AR13: 61.08685 | AS13: 55.95195 | AT13: 57.04805 | AU13: 40.10715 | AV13: 40.89285 | AW13: 26.7381 | AX13: 27.2619 | AY13: 32.6799 | AZ13: 33.3201 | BA13: 44 | BB13: 3 | BC13: 1472 | BD13: 149 | BE13: 105 | BF13: 544 | BG13: 60 | BH13: 151 | BI13: 421 | BJ13: 295 | BK13: 174
B14: 01 | C14: 7 | D14: 5680 | E14: C.S. AMBAR | F14: 1656 | H14: 819.9684 | I14: 836.0316 | K14: 9.903 | L14: 10.097 | M14: 6.43695 | N14: 6.56305 | O14: 12.37875 | P14: 12.62125 | Q14: 9.903 | R14: 10.097 | S14: 6.9321 | T14: 7.0679 | U14: 92.59305 | V14: 94.40695 | W14: 90.1173 | X14: 91.8827 | Y14: 62.3889 | Z14: 63.6111 | AA14: 64.86465 | AB14: 66.13535 | AC14: 56.4471 | AD14: 57.5529 | AE14: 50.01015 | AF14: 50.98985 | AG14: 50.01015 | AH14: 50.98985 | AI14: 46.5441 | AJ14: 47.4559 | AK14: 48.02955 | AL14: 48.97045 | AM14: 44.06835 | AN14: 44.93165 | AO14: 39.612 | AP14: 40.388 | AQ14: 36.14595 | AR14: 36.85405 | AS14: 33.6702 | AT14: 34.3298 | AU14: 24.26235 | AV14: 24.73765 | AW14: 15.8448 | AX14: 16.1552 | AY14: 19.806 | AZ14: 20.194 | BA14: 26 | BB14: 2 | BC14: 883 | BD14: 89 | BE14: 63 | BF14: 326 | BG14: 36 | BH14: 91 | BI14: 252 | BJ14: 176 | BK14: 105
B15: 01 | C15: 8 | D15: 5681 | E15: P.S. AYNACA | F15: 1110 | H15: 549.6165 | I15: 560.3835 | K15: 6.9321 | L15: 7.0679 | M15: 4.45635 | N15: 4.54365 | O15: 7.9224 | P15: 8.0776 | Q15: 6.9321 | R15: 7.0679 | S15: 4.9515 | T15: 5.0485 | U15: 62.3889 | V15: 63.6111 | W15: 60.90345 | X15: 62.09655 | Y15: 42.08775 | Z15: 42.91225 | AA15: 43.5732 | AB15: 44.4268 | AC15: 37.6314 | AD15: 38.3686 | AE15: 33.17505 | AF15: 33.82495 | AG15: 33.6702 | AH15: 34.3298 | AI15: 30.6993 | AJ15: 31.3007 | AK15: 32.18475 | AL15: 32.81525 | AM15: 29.709 | AN15: 30.291 | AO15: 26.7381 | AP15: 27.2619 | AQ15: 23.7672 | AR15: 24.2328 | AS15: 22.28175 | AT15: 22.71825 | AU15: 15.8448 | AV15: 16.1552 | AW15: 10.8933 | AX15: 11.1067 | AY15: 12.8739 | AZ15: 13.1261 | BA15: 18 | BB15: 1 | BC15: 589 | BD15: 60 | BE15: 42 | BF15: 218 | BG15: 24 | BH15: 60 | BI15: 169 | BJ15: 119 | BK15: 69
A16: 150803 | C16: 9 | D16: 150803 | E16: DISTRITO CARQUIN | F16: 7095 | H16: 3513.08925 | I16: 3581.91075 | K16: 43.5732 | L16: 44.4268 | M16: 48.02955 | N16: 48.97045 | O16: 54.96165 | P16: 56.03835 | Q16: 47.03925 | R16: 47.96075 | S16: 47.5344 | T16: 48.4656 | U16: 258.4683 | V16: 263.5317 | W16: 277.77915 | X16: 283.22085 | Y16: 284.2161 | Z16: 289.7839 | AA16: 326.799 | AB16: 333.201 | AC16: 338.18745 | AD16: 344.81255 | AE16: 291.64335 | AF16: 297.35665 | AG16: 255.00225 | AH16: 259.99775 | AI16: 271.3422 | AJ16: 276.6578 | AK16: 189.64245 | AL16: 193.35755 | AM16: 186.67155 | AN16: 190.32845 | AO16: 164.88495 | AP16: 168.11505 | AQ16: 125.27295 | AR16: 127.72705 | AS16: 118.836 | AT16: 121.164 | AU16: 80.2143 | AV16: 81.7857 | AW16: 47.03925 | AX16: 47.96075 | AY16: 55.95195 | AZ16: 57.04805 | BA16: 129 | BB16: 10 | BC16: 3655 | BD16: 275 | BE16: 287 | BF16: 1715 | BG16: 176 | BH16: 337 | BI16: 1438 | BJ16: 971 | BK16: 452
B17: 02 | C17: 10 | D17: 5664 | E17: P.S. CARQUIN | F17: 7095 | H17: 3513.08925 | I17: 3581.91075 | K17: 43.5732 | L17: 44.4268 | M17: 48.02955 | N17: 48.97045 | O17: 54.96165 | P17: 56.03835 | Q17: 47.03925 | R17: 47.96075 | S17: 47.5344 | T17: 48.4656 | U17: 258.4683 | V17: 263.5317 | W17: 277.77915 | X17: 283.22085 | Y17: 284.2161 | Z17: 289.7839 | AA17: 326.799 | AB17: 333.201 | AC17: 338.18745 | AD17: 344.81255 | AE17: 291.64335 | AF17: 297.35665 | AG17: 255.00225 | AH17: 259.99775 | AI17: 271.3422 | AJ17: 276.6578 | AK17: 189.64245 | AL17: 193.35755 | AM17: 186.67155 | AN17: 190.32845 | AO17: 164.88495 | AP17: 168.11505 | AQ17: 125.27295 | AR17: 127.72705 | AS17: 118.836 | AT17: 121.164 | AU17: 80.2143 | AV17: 81.7857 | AW17: 47.03925 | AX17: 47.96075 | AY17: 55.95195 | AZ17: 57.04805 | BA17: 129 | BB17: 10 | BC17: 3655 | BD17: 275 | BE17: 287 | BF17: 1715 | BG17: 176 | BH17: 337 | BI17: 1438 | BJ17: 971 | BK17: 452
A18: 150804 | C18: 11 | D18: 150804 | E18: DISTRITO CHECRAS | F18: 1782 | H18: 882.3573 | I18: 899.6427 | K18: 4.9515 | L18: 5.0485 | M18: 1.9806 | N18: 2.0194 | O18: 5.44665 | P18: 5.55335 | Q18: 1.48545 | R18: 1.51455 | S18: 4.9515 | T18: 5.0485 | U18: 55.4568 | V18: 56.5432 | W18: 80.70945 | X18: 82.29055 | Y18: 52.4859 | Z18: 53.5141 | AA18: 34.16535 | AB18: 34.83465 | AC18: 48.5247 | AD18: 49.4753 | AE18: 39.612 | AF18: 40.388 | AG18: 60.90345 | AH18: 62.09655 | AI18: 61.89375 | AJ18: 63.10625 | AK18: 53.97135 | AL18: 55.02865 | AM18: 72.78705 | AN18: 74.21295 | AO18: 58.92285 | AP18: 60.07715 | AQ18: 58.92285 | AR18: 60.07715 | AS18: 50.01015 | AT18: 50.98985 | AU18: 65.85495 | AV18: 67.14505 | AW18: 35.6508 | AX18: 36.3492 | AY18: 33.6702 | AZ18: 34.3298 | BA18: 34 | BB18: 2 | BC18: 958 | BD18: 79 | BE18: 52 | BF18: 304 | BG18: 47 | BH18: 91 | BI18: 227 | BJ18: 213 | BK18: 170
B19: 05 | C19: 12 | D19: 5663 | E19: P.S. PUÑUN | F19: 1782 | H19: 882.3573 | I19: 899.6427 | K19: 4.9515 | L19: 5.0485 | M19: 1.9806 | N19: 2.0194 | O19: 5.44665 | P19: 5.55335 | Q19: 1.48545 | R19: 1.51455 | S19: 4.9515 | T19: 5.0485 | U19: 55.4568 | V19: 56.5432 | W19: 80.70945 | X19: 82.29055 | Y19: 52.4859 | Z19: 53.5141 | AA19: 34.16535 | AB19: 34.83465 | AC19: 48.5247 | AD19: 49.4753 | AE19: 39.612 | AF19: 40.388 | AG19: 60.90345 | AH19: 62.09655 | AI19: 61.89375 | AJ19: 63.10625 | AK19: 53.97135 | AL19: 55.02865 | AM19: 72.78705 | AN19: 74.21295 | AO19: 58.92285 | AP19: 60.07715 | AQ19: 58.92285 | AR19: 60.07715 | AS19: 50.01015 | AT19: 50.98985 | AU19: 65.85495 | AV19: 67.14505 | AW19: 35.6508 | AX19: 36.3492 | AY19: 33.6702 | AZ19: 34.3298 | BA19: 34 | BB19: 2 | BC19: 958 | BD19: 79 | BE19: 52 | BF19: 304 | BG19: 47 | BH19: 91 | BI19: 227 | BJ19: 213 | BK19: 170
A20: 150805 | C20: 13 | D20: 150805 | E20: DISTRITO HUALMAY | F20: 30403 | H20: 15054.04545 | I20: 15348.95455 | K20: 215.39025 | L20: 219.60975 | M20: 195.58425 | N20: 199.41575 | O20: 210.43875 | P20: 214.56125 | Q20: 208.45815 | R20: 212.54185 | S20: 270.3519 | T20: 275.6481 | U20: 1224.0108 | V20: 1247.9892 | W20: 1355.22555 | X20: 1381.77445 | Y20: 1286.3997 | Z20: 1311.6003 | AA20: 1263.12765 | AB20: 1287.87235 | AC20: 1210.64175 | AD20: 1234.35825 | AE20: 1023.47505 | AF20: 1043.52495 | AG20: 1063.5822 | AH20: 1084.4178 | AI20: 1059.621 | AJ20: 1080.379 | AK20: 809.57025 | AL20: 825.42975 | AM20: 776.89035 | AN20: 792.10965 | AO20: 763.5213 | AP20: 778.4787 | AQ20: 596.65575 | AR20: 608.34425 | AS20: 522.38325 | AT20: 532.61675 | AU20: 379.2849 | AV20: 386.7151 | AW20: 285.70155 | AX20: 291.29845 | AY20: 333.7311 | AZ20: 340.2689 | BA20: 501 | BB20: 40 | BC20: 15369 | BD20: 1339 | BE20: 1295 | BF20: 6596 | BG20: 682 | BH20: 1581 | BI20: 5634 | BJ20: 3962 | BK20: 2141
B21: 02 | C21: 14 | D21: 5665 | E21: C.S. HUALMAY | F21: 15202 | H21: 7527.2703 | I21: 7674.7297 | K21: 107.9427 | L21: 110.0573 | M21: 98.0397 | N21: 99.9603 | O21: 104.9718 | P21: 107.0282 | Q21: 104.47665 | R21: 106.52335 | S21: 135.17595 | T21: 137.82405 | U21: 612.50055 | V21: 624.49945 | W21: 677.86035 | X21: 691.13965 | Y21: 643.695 | Z21: 656.305 | AA21: 631.31625 | AB21: 643.68375 | AC21: 605.0733 | AD21: 616.9267 | AE21: 511.9851 | AF21: 522.0149 | AG21: 531.7911 | AH21: 542.2089 | AI21: 529.8105 | AJ21: 540.1895 | AK21: 405.0327 | AL21: 412.9673 | AM21: 388.69275 | AN21: 396.30725 | AO21: 381.76065 | AP21: 389.23935 | AQ21: 298.0803 | AR21: 303.9197 | AS21: 261.4392 | AT21: 266.5608 | AU21: 188.157 | AV21: 191.843 | AW21: 142.6032 | AX21: 145.3968 | AY21: 166.86555 | AZ21: 170.13445 | BA21: 251 | BB21: 20 | BC21: 7685 | BD21: 669 | BE21: 648 | BF21: 3298 | BG21: 341 | BH21: 787 | BI21: 2820 | BJ21: 1986 | BK21: 1070
B22: 02 | C22: 15 | D22: 5666 | E22: P.S. DGO. MANDAMIENTO | F22: 10641 | H22: 5268.89115 | I22: 5372.10885 | K22: 75.2628 | L22: 76.7372 | M22: 68.3307 | N22: 69.6693 | O22: 73.77735 | P22: 75.22265 | Q22: 72.78705 | R22: 74.21295 | S22: 94.57365 | T22: 96.42635 | U22: 427.8096 | V22: 436.1904 | W22: 473.85855 | X22: 483.14145 | Y22: 450.09135 | Z22: 458.90865 | AA22: 442.16895 | AB22: 450.83105 | AC22: 423.8484 | AD22: 432.1516 | AE22: 357.99345 | AF22: 365.00655 | AG22: 372.3528 | AH22: 379.6472 | AI22: 370.86735 | AJ22: 378.13265 | AK22: 283.2258 | AL22: 288.7742 | AM22: 271.83735 | AN22: 277.16265 | AO22: 267.381 | AP22: 272.619 | AQ22: 208.9533 | AR22: 213.0467 | AS22: 182.71035 | AT22: 186.28965 | AU22: 134.18565 | AV22: 136.81435 | AW22: 100.0203 | AX22: 101.9797 | AY22: 116.8554 | AZ22: 119.1446 | BA22: 175 | BB22: 14 | BC22: 5379 | BD22: 469 | BE22: 453 | BF22: 2309 | BG22: 239 | BH22: 555 | BI22: 1971 | BJ22: 1385 | BK22: 750
B23: 02 | C23: 16 | D23: 5667 | E23: P.S. CAMPO ALEGRE | F23: 4560 | H23: 2257.884 | I23: 2302.116 | K23: 32.18475 | L23: 32.81525 | M23: 29.21385 | N23: 29.78615 | O23: 31.6896 | P23: 32.3104 | Q23: 31.19445 | R23: 31.80555 | S23: 40.6023 | T23: 41.3977 | U23: 183.70065 | V23: 187.29935 | W23: 203.50665 | X23: 207.49335 | Y23: 192.61335 | Z23: 196.38665 | AA23: 189.64245 | AB23: 193.35755 | AC23: 181.72005 | AD23: 185.27995 | AE23: 153.4965 | AF23: 156.5035 | AG23: 159.4383 | AH23: 162.5617 | AI23: 158.94315 | AJ23: 162.05685 | AK23: 121.31175 | AL23: 123.68825 | AM23: 116.36025 | AN23: 118.63975 | AO23: 114.37965 | AP23: 116.62035 | AQ23: 89.62215 | AR23: 91.37785 | AS23: 78.2337 | AT23: 79.7663 | AU23: 56.94225 | AV23: 58.05775 | AW23: 43.07805 | AX23: 43.92195 | AY23: 50.01015 | AZ23: 50.98985 | BA23: 75 | BB23: 6 | BC23: 2305 | BD23: 201 | BE23: 194 | BF23: 989 | BG23: 102 | BH23: 239 | BI23: 843 | BJ23: 591 | BK23: 321
A24: 150806 | C24: 17 | D24: 150806 | E24: DISTRITO HUAURA | F24: 37441 | H24: 18538.91115 | I24: 18902.08885 | K24: 337.19715 | L24: 343.80285 | M24: 246.5847 | N24: 251.4153 | O24: 252.03135 | P24: 256.96865 | Q24: 308.9736 | R24: 315.0264 | S24: 284.71125 | T24: 290.28875 | U24: 1528.0329 | V24: 1557.9671 | W24: 1832.55015 | X24: 1868.44985 | Y24: 1903.3566 | Z24: 1940.6434 | AA24: 1667.17005 | AB24: 1699.82995 | AC24: 1561.7031 | AD24: 1592.2969 | AE24: 1293.82695 | AF24: 1319.17305 | AG24: 1264.11795 | AH24: 1288.88205 | AI24: 1231.9332 | AJ24: 1256.0668 | AK24: 1017.53325 | AL24: 1037.46675 | AM24: 885.3282 | AN24: 902.6718 | AO24: 777.88065 | AP24: 793.11935 | AQ24: 610.0248 | AR24: 621.9752 | AS24: 520.40265 | AT24: 530.59735 | AU24: 454.5477 | AV24: 463.4523 | AW24: 274.3131 | AX24: 279.6869 | AY24: 286.69185 | AZ24: 292.30815 | BA24: 637 | BB24: 51 | BC24: 19016 | BD24: 1816 | BE24: 1921 | BF24: 8266 | BG24: 867 | BH24: 2250 | BI24: 6866 | BJ24: 4823 | BK24: 2208
B25: 01 | C25: 18 | D25: 5682 | E25: C.S. HUAURA | F25: 18721 | H25: 9269.70315 | I25: 9451.29685 | K25: 168.351 | L25: 171.649 | M25: 123.29235 | N25: 125.70765 | O25: 125.7681 | P25: 128.2319 | Q25: 154.4868 | R25: 157.5132 | S25: 142.10805 | T25: 144.89195 | U25: 763.5213 | V25: 778.4787 | W25: 916.0275 | X25: 933.9725 | Y25: 951.6783 | Z25: 970.3217 | AA25: 833.8326 | AB25: 850.1674 | AC25: 780.85155 | AD25: 796.14845 | AE25: 647.16105 | AF25: 659.83895 | AG25: 632.30655 | AH25: 644.69345 | AI25: 615.9666 | AJ25: 628.0334 | AK25: 509.0142 | AL25: 518.9858 | AM25: 442.6641 | AN25: 451.3359 | AO25: 389.1879 | AP25: 396.8121 | AQ25: 305.0124 | AR25: 310.9876 | AS25: 260.4489 | AT25: 265.5511 | AU25: 227.27385 | AV25: 231.72615 | AW25: 137.15655 | AX25: 139.84345 | AY25: 143.5935 | AZ25: 146.4065 | BA25: 319 | BB25: 24 | BC25: 9508 | BD25: 908 | BE25: 961 | BF25: 4132 | BG25: 433 | BH25: 1123 | BI25: 3436 | BJ25: 2412 | BK25: 1107
B26: 01 | C26: 19 | D26: 5686 | E26: P.S. HUMAYA | F26: 12356 | H26: 6118.0734 | I26: 6237.9266 | K26: 111.40875 | L26: 113.59125 | M26: 81.2046 | N26: 82.7954 | O26: 83.1852 | P26: 84.8148 | Q26: 102.0009 | R26: 103.9991 | S26: 94.0785 | T26: 95.9215 | U26: 504.55785 | V26: 514.44215 | W26: 605.56845 | X26: 617.43155 | Y26: 627.35505 | Z26: 639.64495 | AA26: 550.11165 | AB26: 560.88835 | AC26: 515.45115 | AD26: 525.54885 | AE26: 426.8193 | AF26: 435.1807 | AG26: 416.9163 | AH26: 425.0837 | AI26: 406.51815 | AJ26: 414.48185 | AK26: 335.7117 | AL26: 342.2883 | AM26: 292.1385 | AN26: 297.8615 | AO26: 256.4877 | AP26: 261.5123 | AQ26: 201.52605 | AR26: 205.47395 | AS26: 171.81705 | AT26: 175.18295 | AU26: 150.03045 | AV26: 152.96955 | AW26: 90.61245 | AX26: 92.38755 | AY26: 94.57365 | AZ26: 96.42635 | BA26: 210 | BB26: 17 | BC26: 6275 | BD26: 599 | BE26: 634 | BF26: 2728 | BG26: 286 | BH26: 743 | BI26: 2267 | BJ26: 1592 | BK26: 727
B27: 01 | C27: 20 | D27: 5683 | E27: P.S. VILCAHUAURA | F27: 3370 | H27: 1668.6555 | I27: 1701.3445 | K27: 30.20415 | L27: 30.79585 | M27: 22.28175 | N27: 22.71825 | O27: 22.7769 | P27: 23.2231 | Q27: 27.7284 | R27: 28.2716 | S27: 25.7478 | T27: 26.2522 | U27: 137.6517 | V27: 140.3483 | W27: 164.3898 | X27: 167.6102 | Y27: 171.3219 | Z27: 174.6781 | AA27: 150.03045 | AB27: 152.96955 | AC27: 140.6226 | AD27: 143.3774 | AE27: 116.36025 | AF27: 118.63975 | AG27: 113.8845 | AH27: 116.1155 | AI27: 110.9136 | AJ27: 113.0864 | AK27: 91.60275 | AL27: 93.39725 | AM27: 79.71915 | AN27: 81.28085 | AO27: 69.81615 | AP27: 71.18385 | AQ27: 54.96165 | AR27: 56.03835 | AS27: 47.03925 | AT27: 47.96075 | AU27: 41.09745 | AV27: 41.90255 | AW27: 24.7575 | AX27: 25.2425 | AY27: 25.7478 | AZ27: 26.2522 | BA27: 57 | BB27: 5 | BC27: 1711 | BD27: 163 | BE27: 173 | BF27: 744 | BG27: 78 | BH27: 202 | BI27: 618 | BJ27: 435 | BK27: 196
B28: 01 | C28: 21 | D28: 5684 | E28: P.S. PEÑICO | F28: 2621 | H28: 1297.78815 | I28: 1323.21185 | K28: 23.7672 | L28: 24.2328 | M28: 17.33025 | N28: 17.66975 | O28: 17.8254 | P28: 18.1746 | Q28: 21.7866 | R28: 22.2134 | S28: 19.806 | T28: 20.194 | U28: 106.9524 | V28: 109.0476 | W28: 128.24385 | X28: 130.75615 | Y28: 133.6905 | Z28: 136.3095 | AA28: 116.36025 | AB28: 118.63975 | AC28: 108.933 | AD28: 111.067 | AE28: 90.61245 | AF28: 92.38755 | AG28: 88.1367 | AH28: 89.8633 | AI28: 86.1561 | AJ28: 87.8439 | AK28: 71.3016 | AL28: 72.6984 | AM28: 61.89375 | AN28: 63.10625 | AO28: 54.4665 | AP28: 55.5335 | AQ28: 42.5829 | AR28: 43.4171 | AS28: 36.6411 | AT28: 37.3589 | AU28: 31.6896 | AV28: 32.3104 | AW28: 19.806 | AX28: 20.194 | AY28: 19.806 | AZ28: 20.194 | BA28: 45 | BB28: 4 | BC28: 1331 | BD28: 127 | BE28: 134 | BF28: 579 | BG28: 61 | BH28: 160 | BI28: 478 | BJ28: 336 | BK28: 156
B29: 01 | C29: 22 | D29: 5685 | E29: P.S. EL SOCORRO | F29: 373 | H29: 184.69095 | I29: 188.30905 | K29: 3.46605 | L29: 3.53395 | M29: 2.47575 | N29: 2.52425 | O29: 2.47575 | P29: 2.52425 | Q29: 2.9709 | R29: 3.0291 | S29: 2.9709 | T29: 3.0291 | U29: 15.34965 | V29: 15.65035 | W29: 18.32055 | X29: 18.67945 | Y29: 19.31085 | Z29: 19.68915 | AA29: 16.8351 | AB29: 17.1649 | AC29: 15.8448 | AD29: 16.1552 | AE29: 12.8739 | AF29: 13.1261 | AG29: 12.8739 | AH29: 13.1261 | AI29: 12.37875 | AJ29: 12.62125 | AK29: 9.903 | AL29: 10.097 | AM29: 8.9127 | AN29: 9.0873 | AO29: 7.9224 | AP29: 8.0776 | AQ29: 5.9418 | AR29: 6.0582 | AS29: 4.45635 | AT29: 4.54365 | AU29: 4.45635 | AV29: 4.54365 | AW29: 1.9806 | AX29: 2.0194 | AY29: 2.9709 | AZ29: 3.0291 | BA29: 6 | BB29: 1 | BC29: 191 | BD29: 19 | BE29: 19 | BF29: 83 | BG29: 9 | BH29: 22 | BI29: 67 | BJ29: 48 | BK29: 22
A30: 150807 | C30: 23 | D30: 150807 | E30: DISTRITO LEONCIO PRADO | F30: 2025 | H30: 1002.67875 | I30: 1022.32125 | K30: 10.39815 | L30: 10.60185 | M30: 15.8448 | N30: 16.1552 | O30: 14.35935 | P30: 14.64065 | Q30: 16.33995 | R30: 16.66005 | S30: 12.37875 | T30: 12.62125 | U30: 102.9912 | V30: 105.0088 | W30: 78.72885 | X30: 80.27115 | Y30: 75.2628 | Z30: 76.7372 | AA30: 83.1852 | AB30: 84.8148 | AC30: 83.1852 | AD30: 84.8148 | AE30: 60.90345 | AF30: 62.09655 | AG30: 62.88405 | AH30: 64.11595 | AI30: 59.418 | AJ30: 60.582 | AK30: 60.4083 | AL30: 61.5917 | AM30: 60.90345 | AN30: 62.09655 | AO30: 43.07805 | AP30: 43.92195 | AQ30: 42.08775 | AR30: 42.91225 | AS30: 36.14595 | AT30: 36.85405 | AU30: 32.6799 | AV30: 33.3201 | AW30: 22.7769 | AX30: 23.2231 | AY30: 28.7187 | AZ30: 29.2813 | BA30: 34 | BB30: 2 | BC30: 1063 | BD30: 78 | BE30: 75 | BF30: 422 | BG30: 47 | BH30: 81 | BI30: 305 | BJ30: 211 | BK30: 119
B31: 03 | C31: 24 | D31: 5778 | E31: P.S. AUQUIMARCA | F31: 101 | H31: 50.01015 | I31: 50.98985 | K31: 0.49515 | L31: 0.50485 | M31: 0.9903 | N31: 1.0097 | O31: 0.49515 | P31: 0.50485 | Q31: 0.9903 | R31: 1.0097 | S31: 0.49515 | T31: 0.50485 | U31: 4.9515 | V31: 5.0485 | W31: 4.45635 | X31: 4.54365 | Y31: 4.45635 | Z31: 4.54365 | AA31: 3.9612 | AB31: 4.0388 | AC31: 3.9612 | AD31: 4.0388 | AE31: 2.9709 | AF31: 3.0291 | AG31: 2.9709 | AH31: 3.0291 | AI31: 2.9709 | AJ31: 3.0291 | AK31: 2.9709 | AL31: 3.0291 | AM31: 2.9709 | AN31: 3.0291 | AO31: 1.9806 | AP31: 2.0194 | AQ31: 1.9806 | AR31: 2.0194 | AS31: 1.9806 | AT31: 2.0194 | AU31: 1.48545 | AV31: 1.51455 | AW31: 0.9903 | AX31: 1.0097 | AY31: 1.48545 | AZ31: 1.51455 | BA31: 2 | BB31: 0 | BC31: 53 | BD31: 4 | BE31: 4 | BF31: 21 | BG31: 2 | BH31: 6 | BI31: 16 | BJ31: 10 | BK31: 3
B32: 03 | C32: 25 | D32: 5779 | E32: P.S. PARAN | F32: 709 | H32: 351.06135 | I32: 357.93865 | K32: 3.46605 | L32: 3.53395 | M32: 5.44665 | N32: 5.55335 | O32: 4.9515 | P32: 5.0485 | Q32: 5.44665 | R32: 5.55335 | S32: 4.45635 | T32: 4.54365 | U32: 36.14595 | V32: 36.85405 | W32: 26.7381 | X32: 27.2619 | Y32: 27.23325 | Z32: 27.76675 | AA32: 29.21385 | AB32: 29.78615 | AC32: 29.21385 | AD32: 29.78615 | AE32: 21.29145 | AF32: 21.70855 | AG32: 21.7866 | AH32: 22.2134 | AI32: 20.7963 | AJ32: 21.2037 | AK32: 21.29145 | AL32: 21.70855 | AM32: 21.29145 | AN32: 21.70855 | AO32: 14.8545 | AP32: 15.1455 | AQ32: 14.8545 | AR32: 15.1455 | AS32: 12.8739 | AT32: 13.1261 | AU32: 11.38845 | AV32: 11.61155 | AW32: 8.41755 | AX32: 8.58245 | AY32: 9.903 | AZ32: 10.097 | BA32: 16 | BB32: 1 | BC32: 531 | BD32: 38 | BE32: 37 | BF32: 211 | BG32: 24 | BH32: 40 | BI32: 143 | BJ32: 100 | BK32: 63
B33: 03 | C33: 26 | D33: 6725 | E33: P.S. SANTA CRUZ | F33: 405 | H33: 200.53575 | I33: 204.46425 | K33: 1.9806 | L33: 2.0194 | M33: 2.9709 | N33: 3.0291 | O33: 2.9709 | P33: 3.0291 | Q33: 3.46605 | R33: 3.53395 | S33: 2.47575 | T33: 2.52425 | U33: 20.30115 | V33: 20.69885 | W33: 15.8448 | X33: 16.1552 | Y33: 14.8545 | Z33: 15.1455 | AA33: 16.8351 | AB33: 17.1649 | AC33: 16.8351 | AD33: 17.1649 | AE33: 12.37875 | AF33: 12.62125 | AG33: 12.37875 | AH33: 12.62125 | AI33: 11.8836 | AJ33: 12.1164 | AK33: 11.8836 | AL33: 12.1164 | AM33: 12.37875 | AN33: 12.62125 | AO33: 8.41755 | AP33: 8.58245 | AQ33: 8.41755 | AR33: 8.58245 | AS33: 7.42725 | AT33: 7.57275 | AU33: 6.43695 | AV33: 6.56305 | AW33: 4.45635 | AX33: 4.54365 | AY33: 5.9418 | AZ33: 6.0582 | BA33: 7 | BB33: 0 | BC33: 213 | BD33: 16 | BE33: 15 | BF33: 84 | BG33: 9 | BH33: 14 | BI33: 62 | BJ33: 43 | BK33: 24
B34: 03 | C34: 27 | D34: 7757 | E34: P.S. HUANANGUI | F34: 810 | H34: 401.0715 | I34: 408.9285 | K34: 4.45635 | L34: 4.54365 | M34: 6.43695 | N34: 6.56305 | O34: 5.9418 | P34: 6.0582 | Q34: 6.43695 | R34: 6.56305 | S34: 4.9515 | T34: 5.0485 | U34: 41.5926 | V34: 42.4074 | W34: 31.6896 | X34: 32.3104 | Y34: 28.7187 | Z34: 29.2813 | AA34: 33.17505 | AB34: 33.82495 | AC34: 33.17505 | AD34: 33.82495 | AE34: 24.26235 | AF34: 24.73765 | AG34: 25.7478 | AH34: 26.2522 | AI34: 23.7672 | AJ34: 24.2328 | AK34: 24.26235 | AL34: 24.73765 | AM34: 24.26235 | AN34: 24.73765 | AO34: 17.8254 | AP34: 18.1746 | AQ34: 16.8351 | AR34: 17.1649 | AS34: 13.8642 | AT34: 14.1358 | AU34: 13.36905 | AV34: 13.63095 | AW34: 8.9127 | AX34: 9.0873 | AY34: 11.38845 | AZ34: 11.61155 | BA34: 9 | BB34: 1 | BC34: 266 | BD34: 20 | BE34: 19 | BF34: 106 | BG34: 12 | BH34: 21 | BI34: 84 | BJ34: 58 | BK34: 29
A35: 150808 | C35: 28 | D35: 150808 | E35: DISTRITO PACCHO | F35: 2269 | H35: 1123.49535 | I35: 1145.50465 | K35: 11.8836 | L35: 12.1164 | M35: 10.8933 | N35: 11.1067 | O35: 6.9321 | P35: 7.0679 | Q35: 10.8933 | R35: 11.1067 | S35: 11.38845 | T35: 11.61155 | U35: 84.1755 | V35: 85.8245 | W35: 92.0979 | X35: 93.9021 | Y35: 58.92285 | Z35: 60.07715 | AA35: 62.88405 | AB35: 64.11595 | AC35: 65.3598 | AD35: 66.6402 | AE35: 64.86465 | AF35: 66.13535 | AG35: 70.80645 | AH35: 72.19355 | AI35: 78.72885 | AJ35: 80.27115 | AK35: 62.88405 | AL35: 64.11595 | AM35: 63.87435 | AN35: 65.12565 | AO35: 67.3404 | AP35: 68.6596 | AQ35: 80.2143 | AR35: 81.7857 | AS35: 76.2531 | AT35: 77.7469 | AU35: 62.3889 | AV35: 63.6111 | AW35: 41.09745 | AX35: 41.90255 | AY35: 39.612 | AZ35: 40.388 | BA35: 35 | BB35: 2 | BC35: 1178 | BD35: 90 | BE35: 59 | BF35: 414 | BG35: 47 | BH35: 91 | BI35: 331 | BJ35: 272 | BK35: 189
B36: 05 | C36: 29 | D36: 5650 | E36: P.S. PACCHO | F36: 862 | H36: 426.8193 | I36: 435.1807 | K36: 3.9612 | L36: 4.0388 | M36: 4.45635 | N36: 4.54365 | O36: 2.47575 | P36: 2.52425 | Q36: 3.9612 | R36: 4.0388 | S36: 4.45635 | T36: 4.54365 | U36: 31.6896 | V36: 32.3104 | W36: 35.15565 | X36: 35.84435 | Y36: 22.7769 | Z36: 23.2231 | AA36: 23.7672 | AB36: 24.2328 | AC36: 24.7575 | AD36: 25.2425 | AE36: 24.26235 | AF36: 24.73765 | AG36: 27.23325 | AH36: 27.76675 | AI36: 29.709 | AJ36: 30.291 | AK36: 23.7672 | AL36: 24.2328 | AM36: 24.26235 | AN36: 24.73765 | AO36: 25.7478 | AP36: 26.2522 | AQ36: 30.6993 | AR36: 31.3007 | AS36: 29.21385 | AT36: 29.78615 | AU36: 23.7672 | AV36: 24.2328 | AW36: 15.8448 | AX36: 16.1552 | AY36: 14.8545 | AZ36: 15.1455 | BA36: 13 | BB36: 1 | BC36: 435 | BD36: 33 | BE36: 21 | BF36: 153 | BG36: 18 | BH36: 34 | BI36: 114 | BJ36: 92 | BK36: 77
B37: 05 | C37: 30 | D37: 5651 | E37: P.S. LACSANGA | F37: 635 | H37: 314.42025 | I37: 320.57975 | K37: 3.46605 | L37: 3.53395 | M37: 2.9709 | N37: 3.0291 | O37: 1.9806 | P37: 2.0194 | Q37: 2.9709 | R37: 3.0291 | S37: 2.9709 | T37: 3.0291 | U37: 23.27205 | V37: 23.72795 | W37: 25.7478 | X37: 26.2522 | Y37: 16.8351 | Z37: 17.1649 | AA37: 17.8254 | AB37: 18.1746 | AC37: 18.32055 | AD37: 18.67945 | AE37: 18.32055 | AF37: 18.67945 | AG37: 19.806 | AH37: 20.194 | AI37: 22.28175 | AJ37: 22.71825 | AK37: 17.8254 | AL37: 18.1746 | AM37: 17.8254 | AN37: 18.1746 | AO37: 18.8157 | AP37: 19.1843 | AQ37: 22.28175 | AR37: 22.71825 | AS37: 21.29145 | AT37: 21.70855 | AU37: 17.33025 | AV37: 17.66975 | AW37: 11.38845 | AX37: 11.61155 | AY37: 10.8933 | AZ37: 11.1067 | BA37: 10 | BB37: 1 | BC37: 330 | BD37: 25 | BE37: 17 | BF37: 116 | BG37: 13 | BH37: 25 | BI37: 90 | BJ37: 75 | BK37: 55
B38: 05 | C38: 31 | D38: 5653 | E38: P.S. MUZGA | F38: 340 | H38: 168.351 | I38: 171.649 | K38: 1.9806 | L38: 2.0194 | M38: 1.48545 | N38: 1.51455 | O38: 0.9903 | P38: 1.0097 | Q38: 1.9806 | R38: 2.0194 | S38: 1.9806 | T38: 2.0194 | U38: 12.8739 | V38: 13.1261 | W38: 13.8642 | X38: 14.1358 | Y38: 8.41755 | Z38: 8.58245 | AA38: 9.40785 | AB38: 9.59215 | AC38: 9.903 | AD38: 10.097 | AE38: 9.903 | AF38: 10.097 | AG38: 10.39815 | AH38: 10.60185 | AI38: 11.8836 | AJ38: 12.1164 | AK38: 9.40785 | AL38: 9.59215 | AM38: 9.40785 | AN38: 9.59215 | AO38: 9.903 | AP38: 10.097 | AQ38: 11.8836 | AR38: 12.1164 | AS38: 11.38845 | AT38: 11.61155 | AU38: 9.40785 | AV38: 9.59215 | AW38: 5.9418 | AX38: 6.0582 | AY38: 5.9418 | AZ38: 6.0582 | BA38: 5 | BB38: 0 | BC38: 177 | BD38: 14 | BE38: 9 | BF38: 62 | BG38: 7 | BH38: 14 | BI38: 54 | BJ38: 45 | BK38: 25
B39: 05 | C39: 32 | D39: 5652 | E39: P.S. AYARANGA | F39: 432 | H39: 213.9048 | I39: 218.0952 | K39: 2.47575 | L39: 2.52425 | M39: 1.9806 | N39: 2.0194 | O39: 1.48545 | P39: 1.51455 | Q39: 1.9806 | R39: 2.0194 | S39: 1.9806 | T39: 2.0194 | U39: 16.33995 | V39: 16.66005 | W39: 17.33025 | X39: 17.66975 | Y39: 10.8933 | Z39: 11.1067 | AA39: 11.8836 | AB39: 12.1164 | AC39: 12.37875 | AD39: 12.62125 | AE39: 12.37875 | AF39: 12.62125 | AG39: 13.36905 | AH39: 13.63095 | AI39: 14.8545 | AJ39: 15.1455 | AK39: 11.8836 | AL39: 12.1164 | AM39: 12.37875 | AN39: 12.62125 | AO39: 12.8739 | AP39: 13.1261 | AQ39: 15.34965 | AR39: 15.65035 | AS39: 14.35935 | AT39: 14.64065 | AU39: 11.8836 | AV39: 12.1164 | AW39: 7.9224 | AX39: 8.0776 | AY39: 7.9224 | AZ39: 8.0776 | BA39: 7 | BB39: 0 | BC39: 236 | BD39: 18 | BE39: 12 | BF39: 83 | BG39: 9 | BH39: 18 | BI39: 73 | BJ39: 60 | BK39: 32
A40: 150809 | C40: 33 | D40: 150809 | E40: DISTRITO SANTA LEONOR | F40: 1485 | H40: 735.29775 | I40: 749.70225 | K40: 5.44665 | L40: 5.55335 | M40: 4.45635 | N40: 4.54365 | O40: 2.9709 | P40: 3.0291 | Q40: 7.9224 | R40: 8.0776 | S40: 5.9418 | T40: 6.0582 | U40: 61.89375 | V40: 63.10625 | W40: 84.1755 | X40: 85.8245 | Y40: 52.4859 | Z40: 53.5141 | AA40: 45.5538 | AB40: 46.4462 | AC40: 37.13625 | AD40: 37.86375 | AE40: 35.15565 | AF40: 35.84435 | AG40: 45.5538 | AH40: 46.4462 | AI40: 49.01985 | AJ40: 49.98015 | AK40: 46.5441 | AL40: 47.4559 | AM40: 53.97135 | AN40: 55.02865 | AO40: 40.6023 | AP40: 41.3977 | AQ40: 45.05865 | AR40: 45.94135 | AS40: 33.17505 | AT40: 33.82495 | AU40: 31.6896 | AV40: 32.3104 | AW40: 24.7575 | AX40: 25.2425 | AY40: 21.7866 | AZ40: 22.2134 | BA40: 26 | BB40: 2 | BC40: 782 | BD40: 83 | BE40: 53 | BF40: 266 | BG40: 36 | BH40: 69 | BI40: 197 | BJ40: 158 | BK40: 122
B41: 05 | C41: 34 | D41: 5645 | E41: P.S. CHIUCHIN | F41: 802 | H41: 397.1103 | I41: 404.8897 | K41: 2.9709 | L41: 3.0291 | M41: 2.47575 | N41: 2.52425 | O41: 1.9806 | P41: 2.0194 | Q41: 3.9612 | R41: 4.0388 | S41: 2.9709 | T41: 3.0291 | U41: 33.6702 | V41: 34.3298 | W41: 45.5538 | X41: 46.4462 | Y41: 28.22355 | Z41: 28.77645 | AA41: 24.7575 | AB41: 25.2425 | AC41: 19.806 | AD41: 20.194 | AE41: 18.8157 | AF41: 19.1843 | AG41: 24.7575 | AH41: 25.2425 | AI41: 26.24295 | AJ41: 26.75705 | AK41: 25.25265 | AL41: 25.74735 | AM41: 29.21385 | AN41: 29.78615 | AO41: 21.7866 | AP41: 22.2134 | AQ41: 24.26235 | AR41: 24.73765 | AS41: 17.8254 | AT41: 18.1746 | AU41: 17.33025 | AV41: 17.66975 | AW41: 13.36905 | AX41: 13.63095 | AY41: 11.8836 | AZ41: 12.1164 | BA41: 14 | BB41: 1 | BC41: 430 | BD41: 46 | BE41: 29 | BF41: 146 | BG41: 20 | BH41: 40 | BI41: 109 | BJ41: 92 | BK41: 72
B42: 05 | C42: 35 | D42: 5646 | E42: P.S. PARQUIN | F42: 327 | H42: 161.91405 | I42: 165.08595 | K42: 0.9903 | L42: 1.0097 | M42: 0.9903 | N42: 1.0097 | O42: 0.49515 | P42: 0.50485 | Q42: 1.9806 | R42: 2.0194 | S42: 1.48545 | T42: 1.51455 | U42: 13.8642 | V42: 14.1358 | W42: 18.32055 | X42: 18.67945 | Y42: 11.38845 | Z42: 11.61155 | AA42: 9.903 | AB42: 10.097 | AC42: 8.41755 | AD42: 8.58245 | AE42: 7.9224 | AF42: 8.0776 | AG42: 9.903 | AH42: 10.097 | AI42: 10.8933 | AJ42: 11.1067 | AK42: 9.903 | AL42: 10.097 | AM42: 11.8836 | AN42: 12.1164 | AO42: 8.9127 | AP42: 9.0873 | AQ42: 9.903 | AR42: 10.097 | AS42: 7.42725 | AT42: 7.57275 | AU42: 6.9321 | AV42: 7.0679 | AW42: 5.44665 | AX42: 5.55335 | AY42: 4.9515 | AZ42: 5.0485 | BA42: 5 | BB42: 0 | BC42: 141 | BD42: 15 | BE42: 10 | BF42: 48 | BG42: 6 | BH42: 12 | BI42: 36 | BJ42: 26 | BK42: 16
B43: 05 | C43: 36 | D43: 5647 | E43: P.S. JUCUL | F43: 356 | H43: 176.2734 | I43: 179.7266 | K43: 1.48545 | L43: 1.51455 | M43: 0.9903 | N43: 1.0097 | O43: 0.49515 | P43: 0.50485 | Q43: 1.9806 | R43: 2.0194 | S43: 1.48545 | T43: 1.51455 | U43: 14.35935 | V43: 14.64065 | W43: 20.30115 | X43: 20.69885 | Y43: 12.8739 | Z43: 13.1261 | AA43: 10.8933 | AB43: 11.1067 | AC43: 8.9127 | AD43: 9.0873 | AE43: 8.41755 | AF43: 8.58245 | AG43: 10.8933 | AH43: 11.1067 | AI43: 11.8836 | AJ43: 12.1164 | AK43: 11.38845 | AL43: 11.61155 | AM43: 12.8739 | AN43: 13.1261 | AO43: 9.903 | AP43: 10.097 | AQ43: 10.8933 | AR43: 11.1067 | AS43: 7.9224 | AT43: 8.0776 | AU43: 7.42725 | AV43: 7.57275 | AW43: 5.9418 | AX43: 6.0582 | AY43: 4.9515 | AZ43: 5.0485 | BA43: 7 | BB43: 1 | BC43: 211 | BD43: 22 | BE43: 14 | BF43: 72 | BG43: 10 | BH43: 17 | BI43: 52 | BJ43: 40 | BK43: 34
A44: 150810 | C44: 37 | D44: 150810 | E44: DISTRITO SANTA MARIA | F44: 35882 | H44: 17766.9723 | I44: 18115.0277 | K44: 322.34265 | L44: 328.65735 | M44: 258.4683 | N44: 263.5317 | O44: 243.11865 | P44: 247.88135 | Q44: 309.9639 | R44: 316.0361 | S44: 315.9057 | T44: 322.0943 | U44: 1501.2948 | V44: 1530.7052 | W44: 1616.1696 | X44: 1647.8304 | Y44: 1533.9747 | Z44: 1564.0253 | AA44: 1431.47865 | AB44: 1459.52135 | AC44: 1383.94425 | AD44: 1411.05575 | AE44: 1209.1563 | AF44: 1232.8437 | AG44: 1263.6228 | AH44: 1288.3772 | AI44: 1149.24315 | AJ44: 1171.75685 | AK44: 935.8335 | AL44: 954.1665 | AM44: 841.25985 | AN44: 857.74015 | AO44: 873.4446 | AP44: 890.5554 | AQ44: 731.8317 | AR44: 746.1683 | AS44: 568.4322 | AT44: 579.5678 | AU44: 489.2082 | AV44: 498.7918 | AW44: 342.6438 | AX44: 349.3562 | AY44: 445.635 | AZ44: 454.365 | BA44: 581 | BB44: 46 | BC44: 18007 | BD44: 1596 | BE44: 1543 | BF44: 7568 | BG44: 791 | BH44: 1868 | BI44: 6442 | BJ44: 4564 | BK44: 2418
B45: 02 | C45: 38 | D45: 5668 | E45: C.S. SANTA MARIA | F45: 10047 | H45: 4974.77205 | I45: 5072.22795 | K45: 90.1173 | L45: 91.8827 | M45: 72.2919 | N45: 73.7081 | O45: 67.83555 | P45: 69.16445 | Q45: 86.65125 | R45: 88.34875 | S45: 88.63185 | T45: 90.36815 | U45: 420.38235 | V45: 428.61765 | W45: 452.5671 | X45: 461.4329 | Y45: 429.29505 | Z45: 437.70495 | AA45: 400.57635 | AB45: 408.42365 | AC45: 387.70245 | AD45: 395.29755 | AE45: 338.6826 | AF45: 345.3174 | AG45: 354.03225 | AH45: 360.96775 | AI45: 321.8475 | AJ45: 328.1525 | AK45: 261.93435 | AL45: 267.06565 | AM45: 235.6914 | AN45: 240.3086 | AO45: 244.6041 | AP45: 249.3959 | AQ45: 204.9921 | AR45: 209.0079 | AS45: 158.94315 | AT45: 162.05685 | AU45: 137.15655 | AV45: 139.84345 | AW45: 96.0591 | AX45: 97.9409 | AY45: 124.7778 | AZ45: 127.2222 | BA45: 163 | BB45: 13 | BC45: 5042 | BD45: 447 | BE45: 433 | BF45: 2120 | BG45: 222 | BH45: 524 | BI45: 1807 | BJ45: 1279 | BK45: 676
B46: 02 | C46: 39 | D46: 5669 | E46: P.S. CHONTA | F46: 5382 | H46: 2664.8973 | I46: 2717.1027 | K46: 48.5247 | L46: 49.4753 | M46: 38.6217 | N46: 39.3783 | O46: 36.6411 | P46: 37.3589 | Q46: 46.5441 | R46: 47.4559 | S46: 47.5344 | T46: 48.4656 | U46: 225.29325 | V46: 229.70675 | W46: 242.6235 | X46: 247.3765 | Y46: 230.24475 | Z46: 234.75525 | AA46: 215.39025 | AB46: 219.60975 | AC46: 206.9727 | AD46: 211.0273 | AE46: 181.72005 | AF46: 185.27995 | AG46: 189.64245 | AH46: 193.35755 | AI46: 172.3122 | AJ46: 175.6878 | AK46: 140.6226 | AL46: 143.3774 | AM46: 125.7681 | AN46: 128.2319 | AO46: 130.7196 | AP46: 133.2804 | AQ46: 109.42815 | AR46: 111.57185 | AS46: 85.1658 | AT46: 86.8342 | AU46: 72.78705 | AV46: 74.21295 | AW46: 51.4956 | AX46: 52.5044 | AY46: 66.84525 | AZ46: 68.15475 | BA46: 87 | BB46: 7 | BC46: 2701 | BD46: 239 | BE46: 231 | BF46: 1135 | BG46: 119 | BH46: 280 | BI46: 963 | BJ46: 684 | BK46: 363
B47: 02 | C47: 40 | D47: 5671 | E47: P.S. 1RO DE MAYO | F47: 2871 | H47: 1421.57565 | I47: 1449.42435 | K47: 25.7478 | L47: 26.2522 | M47: 21.29145 | N47: 21.70855 | O47: 19.806 | P47: 20.194 | Q47: 24.7575 | R47: 25.2425 | S47: 25.25265 | T47: 25.74735 | U47: 120.32145 | V47: 122.67855 | W47: 128.739 | X47: 131.261 | Y47: 122.7972 | Z47: 125.2028 | AA47: 114.37965 | AB47: 116.62035 | AC47: 110.9136 | AD47: 113.0864 | AE47: 96.55425 | AF47: 98.44575 | AG47: 101.0106 | AH47: 102.9894 | AI47: 92.0979 | AJ47: 93.9021 | AK47: 74.76765 | AL47: 76.23235 | AM47: 67.3404 | AN47: 68.6596 | AO47: 69.81615 | AP47: 71.18385 | AQ47: 58.4277 | AR47: 59.5723 | AS47: 45.5538 | AT47: 46.4462 | AU47: 39.11685 | AV47: 39.88315 | AW47: 27.23325 | AX47: 27.76675 | AY47: 35.6508 | AZ47: 36.3492 | BA47: 46 | BB47: 4 | BC47: 1441 | BD47: 128 | BE47: 123 | BF47: 605 | BG47: 63 | BH47: 150 | BI47: 518 | BJ47: 367 | BK47: 193
B48: 02 | C48: 41 | D48: 5670 | E48: P.S. ZAPATA | F48: 10406 | H48: 5152.5309 | I48: 5253.4691 | K48: 93.58335 | L48: 95.41665 | M48: 74.76765 | N48: 76.23235 | O48: 70.3113 | P48: 71.6887 | Q48: 90.1173 | R48: 91.8827 | S48: 91.1076 | T48: 92.8924 | U48: 435.23685 | V48: 443.76315 | W48: 468.90705 | X48: 478.09295 | Y48: 444.6447 | Z48: 453.3553 | AA48: 414.9357 | AB48: 423.0643 | AC48: 401.56665 | AD48: 409.43335 | AE48: 350.5662 | AF48: 357.4338 | AG48: 366.411 | AH48: 373.589 | AI48: 333.23595 | AJ48: 339.76405 | AK48: 271.3422 | AL48: 276.6578 | AM48: 244.10895 | AN48: 248.89105 | AO48: 253.5168 | AP48: 258.4832 | AQ48: 212.41935 | AR48: 216.58065 | AS48: 164.88495 | AT48: 168.11505 | AU48: 142.10805 | AV48: 144.89195 | AW48: 99.52515 | AX48: 101.47485 | AY48: 129.23415 | AZ48: 131.76585 | BA48: 163 | BB48: 12 | BC48: 5042 | BD48: 447 | BE48: 432 | BF48: 2119 | BG48: 221 | BH48: 524 | BI48: 1806 | BJ48: 1279 | BK48: 676
B49: 02 | C49: 42 | D49: 5672 | E49: P.S. SAN BARTOLOME | F49: 7176 | H49: 3553.1964 | I49: 3622.8036 | K49: 64.3695 | L49: 65.6305 | M49: 51.4956 | N49: 52.5044 | O49: 48.5247 | P49: 49.4753 | Q49: 61.89375 | R49: 63.10625 | S49: 63.3792 | T49: 64.6208 | U49: 300.0609 | V49: 305.9391 | W49: 323.33295 | X49: 329.66705 | Y49: 306.993 | Z49: 313.007 | AA49: 286.1967 | AB49: 291.8033 | AC49: 276.78885 | AD49: 282.21115 | AE49: 241.6332 | AF49: 246.3668 | AG49: 252.5265 | AH49: 257.4735 | AI49: 229.7496 | AJ49: 234.2504 | AK49: 187.1667 | AL49: 190.8333 | AM49: 168.351 | AN49: 171.649 | AO49: 174.78795 | AP49: 178.21205 | AQ49: 146.5644 | AR49: 149.4356 | AS49: 113.8845 | AT49: 116.1155 | AU49: 98.0397 | AV49: 99.9603 | AW49: 68.3307 | AX49: 69.6693 | AY49: 89.127 | AZ49: 90.873 | BA49: 122 | BB49: 10 | BC49: 3781 | BD49: 335 | BE49: 324 | BF49: 1589 | BG49: 166 | BH49: 390 | BI49: 1348 | BJ49: 955 | BK49: 510
A50: 150811 | C50: 43 | D50: 150811 | E50: DISTRITO SAYAN | F50: 25448 | H50: 12600.5772 | I50: 12847.4228 | K50: 216.8757 | L50: 221.1243 | M50: 185.68125 | N50: 189.31875 | O50: 224.30295 | P50: 228.69705 | Q50: 217.37085 | R50: 221.62915 | S50: 220.34175 | T50: 224.65825 | U50: 1085.86395 | V50: 1107.13605 | W50: 1195.2921 | X50: 1218.7079 | Y50: 1167.5637 | Z50: 1190.4363 | AA50: 1151.22375 | AB50: 1173.77625 | AC50: 1124.48565 | AD50: 1146.51435 | AE50: 919.9887 | AF50: 938.0113 | AG50: 889.2894 | AH50: 906.7106 | AI50: 793.72545 | AJ50: 809.27455 | AK50: 702.61785 | AL50: 716.38215 | AM50: 567.4419 | AN50: 578.5581 | AO50: 530.30565 | AP50: 540.69435 | AQ50: 433.25625 | AR50: 441.74375 | AS50: 342.14865 | AT50: 348.85135 | AU50: 282.2355 | AV50: 287.7645 | AW50: 179.73945 | AX50: 183.26055 | AY50: 170.82675 | AZ50: 174.17325 | BA50: 448 | BB50: 35 | BC50: 12953 | BD50: 1185 | BE50: 1179 | BF50: 5746 | BG50: 610 | BH50: 1454 | BI50: 4751 | BJ50: 3194 | BK50: 1435
B51: 03 | C51: 44 | D51: 5780 | E51: C.S. 9 DE OCTUBRE | F51: 8398 | H51: 4158.2697 | I51: 4239.7303 | K51: 71.79675 | L51: 73.20325 | M51: 61.3986 | N51: 62.6014 | O51: 73.77735 | P51: 75.22265 | Q51: 71.79675 | R51: 73.20325 | S51: 72.78705 | T51: 74.21295 | U51: 359.4789 | V51: 366.5211 | W51: 394.1394 | X51: 401.8606 | Y51: 384.73155 | Z51: 392.26845 | AA51: 379.78005 | AB51: 387.21995 | AC51: 370.86735 | AD51: 378.13265 | AE51: 303.52695 | AF51: 309.47305 | AG51: 293.62395 | AH51: 299.37605 | AI51: 261.93435 | AJ51: 267.06565 | AK51: 231.7302 | AL51: 236.2698 | AM51: 187.1667 | AN51: 190.8333 | AO51: 174.78795 | AP51: 178.21205 | AQ51: 143.09835 | AR51: 145.90165 | AS51: 112.8942 | AT51: 115.1058 | AU51: 93.0882 | AV51: 94.9118 | AW51: 59.418 | AX51: 60.582 | AY51: 56.4471 | AZ51: 57.5529 | BA51: 180 | BB51: 13 | BC51: 5181 | BD51: 473 | BE51: 471 | BF51: 2298 | BG51: 244 | BH51: 580 | BI51: 1895 | BJ51: 1276 | BK51: 576
B52: 03 | C52: 45 | D52: 5774 | E52: P.S. LA MERCED | F52: 6616 | H52: 3275.9124 | I52: 3340.0876 | K52: 55.95195 | L52: 57.04805 | M52: 48.5247 | N52: 49.4753 | O52: 58.4277 | P52: 59.5723 | Q52: 55.95195 | R52: 57.04805 | S52: 57.4374 | T52: 58.5626 | U52: 282.2355 | V52: 287.7645 | W52: 310.9542 | X52: 317.0458 | Y52: 303.52695 | Z52: 309.47305 | AA52: 299.56575 | AB52: 305.43425 | AC52: 292.1385 | AD52: 297.8615 | AE52: 239.15745 | AF52: 243.84255 | AG52: 231.23505 | AH52: 235.76495 | AI52: 206.47755 | AJ52: 210.52245 | AK52: 182.71035 | AL52: 186.28965 | AM52: 147.5547 | AN52: 150.4453 | AO52: 137.6517 | AP52: 140.3483 | AQ52: 112.8942 | AR52: 115.1058 | AS52: 89.127 | AT52: 90.873 | AU52: 73.2822 | AV52: 74.7178 | AW52: 46.5441 | AX52: 47.4559 | AY52: 44.5635 | AZ52: 45.4365 | BA52: 103 | BB52: 8 | BC52: 2979 | BD52: 273 | BE52: 271 | BF52: 1322 | BG52: 140 | BH52: 335 | BI52: 1095 | BJ52: 735 | BK52: 332
B53: 03 | C53: 46 | D53: 5781 | E53: P.S. LA VILLA | F53: 763 | H53: 377.79945 | I53: 385.20055 | K53: 6.43695 | L53: 6.56305 | M53: 5.44665 | N53: 5.55335 | O53: 6.9321 | P53: 7.0679 | Q53: 6.43695 | R53: 6.56305 | S53: 6.43695 | T53: 6.56305 | U53: 32.6799 | V53: 33.3201 | W53: 36.14595 | X53: 36.85405 | Y53: 34.6605 | Z53: 35.3395 | AA53: 34.6605 | AB53: 35.3395 | AC53: 33.6702 | AD53: 34.3298 | AE53: 27.7284 | AF53: 28.2716 | AG53: 26.7381 | AH53: 27.2619 | AI53: 23.7672 | AJ53: 24.2328 | AK53: 21.29145 | AL53: 21.70855 | AM53: 16.8351 | AN53: 17.1649 | AO53: 15.8448 | AP53: 16.1552 | AQ53: 12.8739 | AR53: 13.1261 | AS53: 10.39815 | AT53: 10.60185 | AU53: 8.41755 | AV53: 8.58245 | AW53: 5.44665 | AX53: 5.55335 | AY53: 4.9515 | AZ53: 5.0485 | BA53: 13 | BB53: 1 | BC53: 389 | BD53: 36 | BE53: 35 | BF53: 172 | BG53: 18 | BH53: 41 | BI53: 141 | BJ53: 94 | BK53: 44
B54: 03 | C54: 47 | D54: 5775 | E54: P.S. EL AHORCADO | F54: 1018 | H54: 504.0627 | I54: 513.9373 | K54: 8.9127 | L54: 9.0873 | M54: 7.42725 | N54: 7.57275 | O54: 8.9127 | P54: 9.0873 | Q54: 8.9127 | R54: 9.0873 | S54: 8.9127 | T54: 9.0873 | U54: 42.5829 | V54: 43.4171 | W54: 47.03925 | X54: 47.96075 | Y54: 47.03925 | Z54: 47.96075 | AA54: 46.04895 | AB54: 46.95105 | AC54: 45.05865 | AD54: 45.94135 | AE54: 36.6411 | AF54: 37.3589 | AG54: 35.6508 | AH54: 36.3492 | AI54: 31.6896 | AJ54: 32.3104 | AK54: 28.22355 | AL54: 28.77645 | AM54: 22.7769 | AN54: 23.2231 | AO54: 21.29145 | AP54: 21.70855 | AQ54: 17.33025 | AR54: 17.66975 | AS54: 13.8642 | AT54: 14.1358 | AU54: 11.38845 | AV54: 11.61155 | AW54: 7.42725 | AX54: 7.57275 | AY54: 6.9321 | AZ54: 7.0679 | BA54: 22 | BB54: 2 | BC54: 648 | BD54: 59 | BE54: 59 | BF54: 287 | BG54: 31 | BH54: 76 | BI54: 235 | BJ54: 157 | BK54: 70
B55: 03 | C55: 48 | D55: 5776 | E55: P.S. SAYAN | F55: 6872 | H55: 3402.6708 | I55: 3469.3292 | K55: 58.4277 | L55: 59.5723 | M55: 50.01015 | N55: 50.98985 | O55: 60.4083 | P55: 61.5917 | Q55: 58.92285 | R55: 60.07715 | S55: 59.418 | T55: 60.582 | U55: 293.1288 | V55: 298.8712 | W55: 323.33295 | X55: 329.66705 | Y55: 315.41055 | Z55: 321.58945 | AA55: 310.9542 | AB55: 317.0458 | AC55: 303.52695 | AD55: 309.47305 | AE55: 248.5653 | AF55: 253.4347 | AG55: 240.14775 | AH55: 244.85225 | AI55: 214.39995 | AJ55: 218.60005 | AK55: 189.64245 | AL55: 193.35755 | AM55: 153.00135 | AN55: 155.99865 | AO55: 143.09835 | AP55: 145.90165 | AQ55: 116.8554 | AR55: 119.1446 | AS55: 92.59305 | AT55: 94.40695 | AU55: 76.2531 | AV55: 77.7469 | AW55: 48.5247 | AX55: 49.4753 | AY55: 46.04895 | AZ55: 46.95105 | BA55: 112 | BB55: 9 | BC55: 3238 | BD55: 296 | BE55: 295 | BF55: 1437 | BG55: 153 | BH55: 364 | BI55: 1193 | BJ55: 804 | BK55: 355
B56: 03 | C56: 49 | D56: 5777 | E56: P.S. CHAMBARA | F56: 1018 | H56: 504.0627 | I56: 513.9373 | K56: 8.9127 | L56: 9.0873 | M56: 7.42725 | N56: 7.57275 | O56: 8.9127 | P56: 9.0873 | Q56: 8.9127 | R56: 9.0873 | S56: 8.9127 | T56: 9.0873 | U56: 43.07805 | V56: 43.92195 | W56: 47.03925 | X56: 47.96075 | Y56: 47.03925 | Z56: 47.96075 | AA56: 46.04895 | AB56: 46.95105 | AC56: 45.05865 | AD56: 45.94135 | AE56: 36.6411 | AF56: 37.3589 | AG56: 35.6508 | AH56: 36.3492 | AI56: 31.6896 | AJ56: 32.3104 | AK56: 28.22355 | AL56: 28.77645 | AM56: 22.7769 | AN56: 23.2231 | AO56: 21.29145 | AP56: 21.70855 | AQ56: 17.33025 | AR56: 17.66975 | AS56: 13.36905 | AT56: 13.63095 | AU56: 11.38845 | AV56: 11.61155 | AW56: 7.42725 | AX56: 7.57275 | AY56: 6.9321 | AZ56: 7.0679 | BA56: 9 | BB56: 1 | BC56: 259 | BD56: 24 | BE56: 24 | BF56: 115 | BG56: 12 | BH56: 29 | BI56: 96 | BJ56: 64 | BK56: 29
B57: 03 | C57: 50 | D57: 6726 | E57: P.S. LA UNION | F57: 763 | H57: 377.79945 | I57: 385.20055 | K57: 6.43695 | L57: 6.56305 | M57: 5.44665 | N57: 5.55335 | O57: 6.9321 | P57: 7.0679 | Q57: 6.43695 | R57: 6.56305 | S57: 6.43695 | T57: 6.56305 | U57: 32.6799 | V57: 33.3201 | W57: 36.6411 | X57: 37.3589 | Y57: 35.15565 | Z57: 35.84435 | AA57: 34.16535 | AB57: 34.83465 | AC57: 34.16535 | AD57: 34.83465 | AE57: 27.7284 | AF57: 28.2716 | AG57: 26.24295 | AH57: 26.75705 | AI57: 23.7672 | AJ57: 24.2328 | AK57: 20.7963 | AL57: 21.2037 | AM57: 17.33025 | AN57: 17.66975 | AO57: 16.33995 | AP57: 16.66005 | AQ57: 12.8739 | AR57: 13.1261 | AS57: 9.903 | AT57: 10.097 | AU57: 8.41755 | AV57: 8.58245 | AW57: 4.9515 | AX57: 5.0485 | AY57: 4.9515 | AZ57: 5.0485 | BA57: 9 | BB57: 1 | BC57: 259 | BD57: 24 | BE57: 24 | BF57: 115 | BG57: 12 | BH57: 29 | BI57: 96 | BJ57: 64 | BK57: 29
A58: 150812 | C58: 51 | D58: 150812 | E58: DISTRITO VEGUETA | F58: 23978 | H58: 11872.7067 | I58: 12105.2933 | K58: 280.2549 | L58: 285.7451 | M58: 254.5071 | N58: 259.4929 | O58: 235.6914 | P58: 240.3086 | Q58: 233.21565 | R58: 237.78435 | S58: 247.07985 | T58: 251.92015 | U58: 975.94065 | V58: 995.05935 | W58: 1074.4755 | X58: 1095.5245 | Y58: 1090.3203 | Z58: 1111.6797 | AA58: 1040.8053 | AB58: 1061.1947 | AC58: 944.25105 | AD58: 962.74895 | AE58: 756.09405 | AF58: 770.90595 | AG58: 742.725 | AH58: 757.275 | AI58: 736.7832 | AJ58: 751.2168 | AK58: 640.7241 | AL58: 653.2759 | AM58: 554.07285 | AN58: 564.92715 | AO58: 525.35415 | AP58: 535.64585 | AQ58: 428.7999 | AR58: 437.2001 | AS58: 355.02255 | AT58: 361.97745 | AU58: 298.57545 | AV58: 304.42455 | AW58: 214.8951 | AX58: 219.1049 | AY58: 243.11865 | AZ58: 247.88135 | BA58: 467 | BB58: 37 | BC58: 11844 | BD58: 1063 | BE58: 1099 | BF58: 4993 | BG58: 635 | BH58: 1307 | BI58: 4215 | BJ58: 2874 | BK58: 1482
B59: 04 | C59: 52 | D59: 5673 | E59: C.S. VEGUETA | F59: 6714 | H59: 3324.4371 | I59: 3389.5629 | K59: 78.2337 | L59: 79.7663 | M59: 71.3016 | N59: 72.6984 | O59: 65.85495 | P59: 67.14505 | Q59: 65.3598 | R59: 66.6402 | S59: 69.321 | T59: 70.679 | U59: 272.82765 | V59: 278.17235 | W59: 301.0512 | X59: 306.9488 | Y59: 305.50755 | Z59: 311.49245 | AA59: 291.64335 | AB59: 297.35665 | AC59: 264.4101 | AD59: 269.5899 | AE59: 211.9242 | AF59: 216.0758 | AG59: 207.963 | AH59: 212.037 | AI59: 206.47755 | AJ59: 210.52245 | AK59: 179.2443 | AL59: 182.7557 | AM59: 154.98195 | AN59: 158.01805 | AO59: 147.05955 | AP59: 149.94045 | AQ59: 119.8263 | AR59: 122.1737 | AS59: 99.52515 | AT59: 101.47485 | AU59: 83.68035 | AV59: 85.31965 | AW59: 60.4083 | AX59: 61.5917 | AY59: 67.83555 | AZ59: 69.16445 | BA59: 140 | BB59: 10 | BC59: 3552 | BD59: 320 | BE59: 330 | BF59: 1498 | BG59: 191 | BH59: 392 | BI59: 1263 | BJ59: 861 | BK59: 446
B60: 04 | C60: 53 | D60: 5674 | E60: P.S. MAZO | F60: 2398 | H60: 1187.3697 | I60: 1210.6303 | K60: 28.22355 | L60: 28.77645 | M60: 25.25265 | N60: 25.74735 | O60: 23.7672 | P60: 24.2328 | Q60: 23.27205 | R60: 23.72795 | S60: 24.7575 | T60: 25.2425 | U60: 97.54455 | V60: 99.45545 | W60: 107.44755 | X60: 109.55245 | Y60: 108.933 | Z60: 111.067 | AA60: 103.9815 | AB60: 106.0185 | AC60: 94.57365 | AD60: 96.42635 | AE60: 75.75795 | AF60: 77.24205 | AG60: 74.2725 | AH60: 75.7275 | AI60: 73.77735 | AJ60: 75.22265 | AK60: 63.87435 | AL60: 65.12565 | AM60: 55.4568 | AN60: 56.5432 | AO60: 52.4859 | AP60: 53.5141 | AQ60: 43.07805 | AR60: 43.92195 | AS60: 35.6508 | AT60: 36.3492 | AU60: 29.709 | AV60: 30.291 | AW60: 21.29145 | AX60: 21.70855 | AY60: 24.26235 | AZ60: 24.73765 | BA60: 37 | BB60: 3 | BC60: 948 | BD60: 85 | BE60: 88 | BF60: 399 | BG60: 51 | BH60: 106 | BI60: 336 | BJ60: 229 | BK60: 118
B61: 04 | C61: 54 | D61: 5675 | E61: P.S. PRIMAVERA | F61: 5275 | H61: 2611.91625 | I61: 2663.08375 | K61: 61.89375 | L61: 63.10625 | M61: 55.95195 | N61: 57.04805 | O61: 51.99075 | P61: 53.00925 | Q61: 51.4956 | R61: 52.5044 | S61: 54.4665 | T61: 55.5335 | U61: 214.8951 | V61: 219.1049 | W61: 235.6914 | X61: 240.3086 | Y61: 239.6526 | Z61: 244.3474 | AA61: 228.7593 | AB61: 233.2407 | AC61: 207.963 | AD61: 212.037 | AE61: 166.3704 | AF61: 169.6296 | AG61: 163.3995 | AH61: 166.6005 | AI61: 161.91405 | AJ61: 165.08595 | AK61: 141.11775 | AL61: 143.88225 | AM61: 121.8069 | AN61: 124.1931 | AO61: 115.36995 | AP61: 117.63005 | AQ61: 94.57365 | AR61: 96.42635 | AS61: 78.2337 | AT61: 79.7663 | AU61: 65.85495 | AV61: 67.14505 | AW61: 47.03925 | AX61: 47.96075 | AY61: 53.4762 | AZ61: 54.5238 | BA61: 84 | BB61: 7 | BC61: 2132 | BD61: 191 | BE61: 198 | BF61: 899 | BG61: 114 | BH61: 235 | BI61: 762 | BJ61: 519 | BK61: 265
B62: 04 | C62: 55 | D62: 5676 | E62: P.S. MARIATEGUI | F62: 6234 | H62: 3086.7651 | I62: 3147.2349 | K62: 72.2919 | L62: 73.7081 | M62: 66.3501 | N62: 67.6499 | O62: 61.3986 | P62: 62.6014 | Q62: 60.4083 | R62: 61.5917 | S62: 64.3695 | T62: 65.6305 | U62: 253.5168 | V62: 258.4832 | W62: 279.2646 | X62: 284.7354 | Y62: 283.72095 | Z62: 289.27905 | AA62: 270.84705 | AB62: 276.15295 | AC62: 245.5944 | AD62: 250.4056 | AE62: 196.57455 | AF62: 200.42545 | AG62: 193.1085 | AH62: 196.8915 | AI62: 191.62305 | AJ62: 195.37695 | AK62: 166.3704 | AL62: 169.6296 | AM62: 144.08865 | AN62: 146.91135 | AO62: 136.6614 | AP62: 139.3386 | AQ62: 111.40875 | AR62: 113.59125 | AS62: 92.0979 | AT62: 93.9021 | AU62: 77.73855 | AV62: 79.26145 | AW62: 55.95195 | AX62: 57.04805 | AY62: 63.3792 | AZ62: 64.6208 | BA62: 126 | BB62: 10 | BC62: 3198 | BD62: 287 | BE62: 297 | BF62: 1348 | BG62: 171 | BH62: 352 | BI62: 1140 | BJ62: 778 | BK62: 402
B63: 04 | C63: 56 | D63: 5677 | E63: P.S. MEDIO MUNDO | F63: 3117 | H63: 1543.38255 | I63: 1573.61745 | K63: 36.6411 | L63: 37.3589 | M63: 33.17505 | N63: 33.82495 | O63: 30.6993 | P63: 31.3007 | Q63: 30.20415 | R63: 30.79585 | S63: 32.18475 | T63: 32.81525 | U63: 127.25355 | V63: 129.74645 | W63: 139.6323 | X63: 142.3677 | Y63: 141.6129 | Z63: 144.3871 | AA63: 135.17595 | AB63: 137.82405 | AC63: 122.30205 | AD63: 124.69795 | AE63: 98.0397 | AF63: 99.9603 | AG63: 96.55425 | AH63: 98.44575 | AI63: 95.56395 | AJ63: 97.43605 | AK63: 83.68035 | AL63: 85.31965 | AM63: 72.2919 | AN63: 73.7081 | AO63: 68.3307 | AP63: 69.6693 | AQ63: 55.4568 | AR63: 56.5432 | AS63: 46.04895 | AT63: 46.95105 | AU63: 38.6217 | AV63: 39.3783 | AW63: 28.22355 | AX63: 28.77645 | AY63: 31.6896 | AZ63: 32.3104 | BA63: 71 | BB63: 6 | BC63: 1777 | BD63: 159 | BE63: 165 | BF63: 749 | BG63: 95 | BH63: 196 | BI63: 632 | BJ63: 431 | BK63: 221
B64: 04 | C64: 57 | D64: 5678 | E64: P.S. TIROLER | F64: 240 | H64: 118.836 | I64: 121.164 | K64: 2.9709 | L64: 3.0291 | M64: 2.47575 | N64: 2.52425 | O64: 1.9806 | P64: 2.0194 | Q64: 2.47575 | R64: 2.52425 | S64: 1.9806 | T64: 2.0194 | U64: 9.903 | V64: 10.097 | W64: 11.38845 | X64: 11.61155 | Y64: 10.8933 | Z64: 11.1067 | AA64: 10.39815 | AB64: 10.60185 | AC64: 9.40785 | AD64: 9.59215 | AE64: 7.42725 | AF64: 7.57275 | AG64: 7.42725 | AH64: 7.57275 | AI64: 7.42725 | AJ64: 7.57275 | AK64: 6.43695 | AL64: 6.56305 | AM64: 5.44665 | AN64: 5.55335 | AO64: 5.44665 | AP64: 5.55335 | AQ64: 4.45635 | AR64: 4.54365 | AS64: 3.46605 | AT64: 3.53395 | AU64: 2.9709 | AV64: 3.0291 | AW64: 1.9806 | AX64: 2.0194 | AY64: 2.47575 | AZ64: 2.52425 | BA64: 9 | BB64: 1 | BC64: 237 | BD64: 21 | BE64: 21 | BF64: 100 | BG64: 13 | BH64: 26 | BI64: 82 | BJ64: 56 | BK64: 30
A65: 150900 | C65: 58 | D65: 150900 | E65: PROVINCIA OYON | F65: 22902 | H65: 11339.9253 | I65: 11562.0747 | K65: 134.18565 | L65: 136.81435 | M65: 107.44755 | N65: 109.55245 | O65: 111.9039 | P65: 114.0961 | Q65: 136.16625 | R65: 138.83375 | S65: 144.5838 | T65: 147.4162 | U65: 1064.5725 | V65: 1085.4275 | W65: 1215.59325 | X65: 1239.40675 | Y65: 928.40625 | Z65: 946.59375 | AA65: 870.4737 | AB65: 887.5263 | AC65: 982.3776 | AD65: 1001.6224 | AE65: 838.28895 | AF65: 854.71105 | AG65: 917.0178 | AH65: 934.9822 | AI65: 741.7347 | AJ65: 756.2653 | AK65: 637.25805 | AL65: 649.74195 | AM65: 526.34445 | AN65: 536.65555 | AO65: 483.2664 | AP65: 492.7336 | AQ65: 373.3431 | AR65: 380.6569 | AS65: 377.79945 | AT65: 385.20055 | AU65: 306.49785 | AV65: 312.50215 | AW65: 240.6429 | AX65: 245.3571 | AY65: 202.0212 | AZ65: 205.9788 | BA65: 526 | BB65: 38 | BC65: 12244 | BD65: 1206 | BE65: 937 | BF65: 5134 | BG65: 719 | BH65: 1256 | BI65: 4327 | BJ65: 3086 | BK65: 1334
A66: 150901 | C66: 59 | D66: 150901 | E66: DISTRITO OYON | F66: 14399 | H66: 7129.66485 | I66: 7269.33515 | K66: 87.64155 | L66: 89.35845 | M66: 68.82585 | N66: 70.17415 | O66: 65.3598 | P66: 66.6402 | Q66: 85.66095 | R66: 87.33905 | S66: 89.62215 | T66: 91.37785 | U66: 709.54995 | V66: 723.45005 | W66: 817.9878 | X66: 834.0122 | Y66: 615.9666 | Z66: 628.0334 | AA66: 580.81095 | AB66: 592.18905 | AC66: 692.2197 | AD66: 705.7803 | AE66: 584.277 | AF66: 595.723 | AG66: 623.889 | AH66: 636.111 | AI66: 472.86825 | AJ66: 482.13175 | AK66: 391.1685 | AL66: 398.8315 | AM66: 320.36205 | AN66: 326.63795 | AO66: 255.99255 | AP66: 261.00745 | AQ66: 169.83645 | AR66: 173.16355 | AS66: 177.2637 | AT66: 180.7363 | AU66: 127.25355 | AV66: 129.74645 | AW66: 103.48635 | AX66: 105.51365 | AY66: 89.62215 | AZ66: 91.37785 | BA66: 342 | BB66: 26 | BC66: 7783 | BD66: 813 | BE66: 623 | BF66: 3451 | BG66: 466 | BH66: 843 | BI66: 2955 | BJ66: 2066 | BK66: 719
B67: 05 | C67: 60 | D67: 5659 | E67: P.S. RAPAZ | F67: 11951 | H67: 5917.53765 | I67: 6033.46235 | K67: 72.78705 | L67: 74.21295 | M67: 56.94225 | N67: 58.05775 | O67: 54.4665 | P67: 55.5335 | Q67: 71.3016 | R67: 72.6984 | S67: 74.2725 | T67: 75.7275 | U67: 588.73335 | V67: 600.26665 | W67: 679.3458 | X67: 692.6542 | Y67: 510.9948 | Z67: 521.0052 | AA67: 482.2761 | AB67: 491.7239 | AC67: 574.374 | AD67: 585.626 | AE67: 484.75185 | AF67: 494.24815 | AG67: 517.9269 | AH67: 528.0731 | AI67: 392.65395 | AJ67: 400.34605 | AK67: 324.8184 | AL67: 331.1816 | AM67: 265.89555 | AN67: 271.10445 | AO67: 212.41935 | AP67: 216.58065 | AQ67: 141.11775 | AR67: 143.88225 | AS67: 147.05955 | AT67: 149.94045 | AU67: 105.46695 | AV67: 107.53305 | AW67: 85.66095 | AX67: 87.33905 | AY67: 74.2725 | AZ67: 75.7275 | BA67: 285 | BB67: 22 | BC67: 6460 | BD67: 675 | BE67: 517 | BF67: 2863 | BG67: 387 | BH67: 700 | BI67: 2456 | BJ67: 1721 | BK67: 595
B68: 05 | C68: 61 | D68: 5660 | E68: C.S. OYON | F68: 720 | H68: 356.508 | I68: 363.492 | K68: 4.45635 | L68: 4.54365 | M68: 3.46605 | N68: 3.53395 | O68: 3.46605 | P68: 3.53395 | Q68: 4.45635 | R68: 4.54365 | S68: 4.45635 | T68: 4.54365 | U68: 35.6508 | V68: 36.3492 | W68: 40.6023 | X68: 41.3977 | Y68: 30.6993 | Z68: 31.3007 | AA68: 28.7187 | AB68: 29.2813 | AC68: 34.6605 | AD68: 35.3395 | AE68: 29.21385 | AF68: 29.78615 | AG68: 31.19445 | AH68: 31.80555 | AI68: 23.7672 | AJ68: 24.2328 | AK68: 19.806 | AL68: 20.194 | AM68: 15.8448 | AN68: 16.1552 | AO68: 12.8739 | AP68: 13.1261 | AQ68: 8.41755 | AR68: 8.58245 | AS68: 8.9127 | AT68: 9.0873 | AU68: 6.43695 | AV68: 6.56305 | AW68: 4.9515 | AX68: 5.0485 | AY68: 4.45635 | AZ68: 4.54365 | BA68: 17 | BB68: 1 | BC68: 389 | BD68: 41 | BE68: 31 | BF68: 173 | BG68: 23 | BH68: 40 | BI68: 148 | BJ68: 105 | BK68: 35
B69: 05 | C69: 62 | D69: 5661 | E69: P.S. MALLAY | F69: 144 | H69: 71.3016 | I69: 72.6984 | K69: 0.9903 | L69: 1.0097 | M69: 0.9903 | N69: 1.0097 | O69: 0 | P69: 0 | Q69: 0.9903 | R69: 1.0097 | S69: 0.9903 | T69: 1.0097 | U69: 6.43695 | V69: 6.56305 | W69: 7.42725 | X69: 7.57275 | Y69: 6.9321 | Z69: 7.0679 | AA69: 5.9418 | AB69: 6.0582 | AC69: 6.9321 | AD69: 7.0679 | AE69: 5.9418 | AF69: 6.0582 | AG69: 6.43695 | AH69: 6.56305 | AI69: 4.9515 | AJ69: 5.0485 | AK69: 3.9612 | AL69: 4.0388 | AM69: 2.9709 | AN69: 3.0291 | AO69: 2.47575 | AP69: 2.52425 | AQ69: 1.48545 | AR69: 1.51455 | AS69: 1.9806 | AT69: 2.0194 | AU69: 1.48545 | AV69: 1.51455 | AW69: 0.9903 | AX69: 1.0097 | AY69: 0.9903 | AZ69: 1.0097 | BA69: 3 | BB69: 0 | BC69: 78 | BD69: 8 | BE69: 6 | BF69: 35 | BG69: 5 | BH69: 9 | BI69: 27 | BJ69: 14 | BK69: 10
B70: 05 | C70: 63 | D70: 5662 | E70: P.S. NAVA | F70: 432 | H70: 213.9048 | I70: 218.0952 | K70: 2.47575 | L70: 2.52425 | M70: 1.9806 | N70: 2.0194 | O70: 1.9806 | P70: 2.0194 | Q70: 1.9806 | R70: 2.0194 | S70: 2.9709 | T70: 3.0291 | U70: 22.28175 | V70: 22.71825 | W70: 24.26235 | X70: 24.73765 | Y70: 18.32055 | Z70: 18.67945 | AA70: 17.33025 | AB70: 17.66975 | AC70: 20.7963 | AD70: 21.2037 | AE70: 17.33025 | AF70: 17.66975 | AG70: 18.8157 | AH70: 19.1843 | AI70: 14.35935 | AJ70: 14.64065 | AK70: 11.8836 | AL70: 12.1164 | AM70: 9.40785 | AN70: 9.59215 | AO70: 7.9224 | AP70: 8.0776 | AQ70: 4.9515 | AR70: 5.0485 | AS70: 5.44665 | AT70: 5.55335 | AU70: 3.9612 | AV70: 4.0388 | AW70: 2.9709 | AX70: 3.0291 | AY70: 2.47575 | AZ70: 2.52425 | BA70: 10 | BB70: 1 | BC70: 233 | BD70: 24 | BE70: 19 | BF70: 104 | BG70: 14 | BH70: 25 | BI70: 89 | BJ70: 63 | BK70: 21
B71: 05 | C71: 64 | D71: 5648 | E71: P.S. TINTA | F71: 1152 | H71: 570.4128 | I71: 581.5872 | K71: 6.9321 | L71: 7.0679 | M71: 5.44665 | N71: 5.55335 | O71: 5.44665 | P71: 5.55335 | Q71: 6.9321 | R71: 7.0679 | S71: 6.9321 | T71: 7.0679 | U71: 56.4471 | V71: 57.5529 | W71: 66.3501 | X71: 67.6499 | Y71: 49.01985 | Z71: 49.98015 | AA71: 46.5441 | AB71: 47.4559 | AC71: 55.4568 | AD71: 56.5432 | AE71: 47.03925 | AF71: 47.96075 | AG71: 49.515 | AH71: 50.485 | AI71: 37.13625 | AJ71: 37.86375 | AK71: 30.6993 | AL71: 31.3007 | AM71: 26.24295 | AN71: 26.75705 | AO71: 20.30115 | AP71: 20.69885 | AQ71: 13.8642 | AR71: 14.1358 | AS71: 13.8642 | AT71: 14.1358 | AU71: 9.903 | AV71: 10.097 | AW71: 8.9127 | AX71: 9.0873 | AY71: 7.42725 | AZ71: 7.57275 | BA71: 27 | BB71: 2 | BC71: 623 | BD71: 65 | BE71: 50 | BF71: 276 | BG71: 37 | BH71: 69 | BI71: 235 | BJ71: 163 | BK71: 58
A72: 150902 | C72: 65 | D72: 150902 | E72: DISTRITO ANDAJES | F72: 1093 | H72: 541.19895 | I72: 551.80105 | K72: 0.9903 | L72: 1.0097 | M72: 2.9709 | N72: 3.0291 | O72: 4.45635 | P72: 4.54365 | Q72: 2.9709 | R72: 3.0291 | S72: 1.9806 | T72: 2.0194 | U72: 25.25265 | V72: 25.74735 | W72: 32.18475 | X72: 32.81525 | Y72: 29.21385 | Z72: 29.78615 | AA72: 26.24295 | AB72: 26.75705 | AC72: 35.6508 | AD72: 36.3492 | AE72: 22.7769 | AF72: 23.2231 | AG72: 36.6411 | AH72: 37.3589 | AI72: 31.6896 | AJ72: 32.3104 | AK72: 37.6314 | AL72: 38.3686 | AM72: 25.25265 | AN72: 25.74735 | AO72: 37.6314 | AP72: 38.3686 | AQ72: 34.16535 | AR72: 34.83465 | AS72: 52.98105 | AT72: 54.01895 | AU72: 29.709 | AV72: 30.291 | AW72: 42.5829 | AX72: 43.4171 | AY72: 28.22355 | AZ72: 28.77645 | BA72: 10 | BB72: 0 | BC72: 560 | BD72: 31 | BE72: 29 | BF72: 192 | BG72: 14 | BH72: 32 | BI72: 154 | BJ72: 114 | BK72: 103
B73: 05 | C73: 66 | D73: 5654 | E73: P.S. ANDAJES | F73: 1093 | H73: 541.19895 | I73: 551.80105 | K73: 0.9903 | L73: 1.0097 | M73: 2.9709 | N73: 3.0291 | O73: 4.45635 | P73: 4.54365 | Q73: 2.9709 | R73: 3.0291 | S73: 1.9806 | T73: 2.0194 | U73: 25.25265 | V73: 25.74735 | W73: 32.18475 | X73: 32.81525 | Y73: 29.21385 | Z73: 29.78615 | AA73: 26.24295 | AB73: 26.75705 | AC73: 35.6508 | AD73: 36.3492 | AE73: 22.7769 | AF73: 23.2231 | AG73: 36.6411 | AH73: 37.3589 | AI73: 31.6896 | AJ73: 32.3104 | AK73: 37.6314 | AL73: 38.3686 | AM73: 25.25265 | AN73: 25.74735 | AO73: 37.6314 | AP73: 38.3686 | AQ73: 34.16535 | AR73: 34.83465 | AS73: 52.98105 | AT73: 54.01895 | AU73: 29.709 | AV73: 30.291 | AW73: 42.5829 | AX73: 43.4171 | AY73: 28.22355 | AZ73: 28.77645 | BA73: 10 | BB73: 0 | BC73: 560 | BD73: 31 | BE73: 29 | BF73: 192 | BG73: 14 | BH73: 32 | BI73: 154 | BJ73: 114 | BK73: 103
A74: 150903 | C74: 67 | D74: 150903 | E74: DISTRITO CAUJUL | F74: 1033 | H74: 511.48995 | I74: 521.51005 | K74: 2.47575 | L74: 2.52425 | M74: 0.9903 | N74: 1.0097 | O74: 8.41755 | P74: 8.58245 | Q74: 4.45635 | R74: 4.54365 | S74: 7.9224 | T74: 8.0776 | U74: 47.5344 | V74: 48.4656 | W74: 43.5732 | X74: 44.4268 | Y74: 37.6314 | Z74: 38.3686 | AA74: 38.6217 | AB74: 39.3783 | AC74: 34.6605 | AD74: 35.3395 | AE74: 34.6605 | AF74: 35.3395 | AG74: 36.6411 | AH74: 37.3589 | AI74: 31.19445 | AJ74: 31.80555 | AK74: 35.15565 | AL74: 35.84435 | AM74: 26.7381 | AN74: 27.2619 | AO74: 24.26235 | AP74: 24.73765 | AQ74: 22.7769 | AR74: 23.2231 | AS74: 29.709 | AT74: 30.291 | AU74: 15.8448 | AV74: 16.1552 | AW74: 14.35935 | AX74: 14.64065 | AY74: 13.8642 | AZ74: 14.1358 | BA74: 20 | BB74: 1 | BC74: 556 | BD74: 43 | BE74: 38 | BF74: 218 | BG74: 27 | BH74: 50 | BI74: 176 | BJ74: 138 | BK74: 67
B75: 05 | C75: 68 | D75: 5655 | E75: P.S. CAUJUL | F75: 1033 | H75: 511.48995 | I75: 521.51005 | K75: 2.47575 | L75: 2.52425 | M75: 0.9903 | N75: 1.0097 | O75: 8.41755 | P75: 8.58245 | Q75: 4.45635 | R75: 4.54365 | S75: 7.9224 | T75: 8.0776 | U75: 47.5344 | V75: 48.4656 | W75: 43.5732 | X75: 44.4268 | Y75: 37.6314 | Z75: 38.3686 | AA75: 38.6217 | AB75: 39.3783 | AC75: 34.6605 | AD75: 35.3395 | AE75: 34.6605 | AF75: 35.3395 | AG75: 36.6411 | AH75: 37.3589 | AI75: 31.19445 | AJ75: 31.80555 | AK75: 35.15565 | AL75: 35.84435 | AM75: 26.7381 | AN75: 27.2619 | AO75: 24.26235 | AP75: 24.73765 | AQ75: 22.7769 | AR75: 23.2231 | AS75: 29.709 | AT75: 30.291 | AU75: 15.8448 | AV75: 16.1552 | AW75: 14.35935 | AX75: 14.64065 | AY75: 13.8642 | AZ75: 14.1358 | BA75: 20 | BB75: 1 | BC75: 556 | BD75: 43 | BE75: 38 | BF75: 218 | BG75: 27 | BH75: 50 | BI75: 176 | BJ75: 138 | BK75: 67
A76: 150904 | C76: 69 | D76: 150904 | E76: DISTRITO COCHAMARCA | F76: 1597 | H76: 790.75455 | I76: 806.24545 | K76: 3.46605 | L76: 3.53395 | M76: 7.42725 | N76: 7.57275 | O76: 7.9224 | P76: 8.0776 | Q76: 12.8739 | R76: 13.1261 | S76: 6.9321 | T76: 7.0679 | U76: 87.64155 | V76: 89.35845 | W76: 99.03 | X76: 100.97 | Y76: 72.78705 | Z76: 74.21295 | AA76: 58.4277 | AB76: 59.5723 | AC76: 43.5732 | AD76: 44.4268 | AE76: 53.97135 | AF76: 55.02865 | AG76: 57.4374 | AH76: 58.5626 | AI76: 54.96165 | AJ76: 56.03835 | AK76: 40.10715 | AL76: 40.89285 | AM76: 32.18475 | AN76: 32.81525 | AO76: 37.13625 | AP76: 37.86375 | AQ76: 29.21385 | AR76: 29.78615 | AS76: 23.27205 | AT76: 23.72795 | AU76: 23.7672 | AV76: 24.2328 | AW76: 19.31085 | AX76: 19.68915 | AY76: 19.31085 | AZ76: 19.68915 | BA76: 34 | BB76: 2 | BC76: 863 | BD76: 98 | BE76: 73 | BF76: 318 | BG76: 47 | BH76: 98 | BI76: 255 | BJ76: 205 | BK76: 81
B77: 03 | C77: 70 | D77: 5783 | E77: P.S. COCHAMARCA | F77: 687 | H77: 340.16805 | I77: 346.83195 | K77: 1.48545 | L77: 1.51455 | M77: 2.9709 | N77: 3.0291 | O77: 2.9709 | P77: 3.0291 | Q77: 5.44665 | R77: 5.55335 | S77: 2.9709 | T77: 3.0291 | U77: 37.6314 | V77: 38.3686 | W77: 42.5829 | X77: 43.4171 | Y77: 31.6896 | Z77: 32.3104 | AA77: 25.25265 | AB77: 25.74735 | AC77: 18.8157 | AD77: 19.1843 | AE77: 23.27205 | AF77: 23.72795 | AG77: 24.7575 | AH77: 25.2425 | AI77: 23.7672 | AJ77: 24.2328 | AK77: 17.33025 | AL77: 17.66975 | AM77: 13.8642 | AN77: 14.1358 | AO77: 15.8448 | AP77: 16.1552 | AQ77: 12.37875 | AR77: 12.62125 | AS77: 9.903 | AT77: 10.097 | AU77: 10.39815 | AV77: 10.60185 | AW77: 8.41755 | AX77: 8.58245 | AY77: 8.41755 | AZ77: 8.58245 | BA77: 14 | BB77: 1 | BC77: 345 | BD77: 39 | BE77: 29 | BF77: 127 | BG77: 19 | BH77: 39 | BI77: 103 | BJ77: 86 | BK77: 33
B78: 03 | C78: 71 | D78: 5784 | E78: P.S. COLCAPAMPA | F78: 751 | H78: 371.85765 | I78: 379.14235 | K78: 1.48545 | L78: 1.51455 | M78: 3.46605 | N78: 3.53395 | O78: 3.9612 | P78: 4.0388 | Q78: 5.9418 | R78: 6.0582 | S78: 3.46605 | T78: 3.53395 | U78: 41.5926 | V78: 42.4074 | W78: 46.5441 | X78: 47.4559 | Y78: 34.16535 | Z78: 34.83465 | AA78: 27.23325 | AB78: 27.76675 | AC78: 20.30115 | AD78: 20.69885 | AE78: 25.25265 | AF78: 25.74735 | AG78: 27.23325 | AH78: 27.76675 | AI78: 25.7478 | AJ78: 26.2522 | AK78: 18.8157 | AL78: 19.1843 | AM78: 15.34965 | AN78: 15.65035 | AO78: 17.33025 | AP78: 17.66975 | AQ78: 13.8642 | AR78: 14.1358 | AS78: 10.8933 | AT78: 11.1067 | AU78: 11.38845 | AV78: 11.61155 | AW78: 8.9127 | AX78: 9.0873 | AY78: 8.9127 | AZ78: 9.0873 | BA78: 15 | BB78: 1 | BC78: 397 | BD78: 45 | BE78: 34 | BF78: 146 | BG78: 21 | BH78: 45 | BI78: 118 | BJ78: 93 | BK78: 36
B79: 03 | C79: 72 | D79: 5785 | E79: P.S. YARUCAYA | F79: 159 | H79: 78.72885 | I79: 80.27115 | K79: 0.49515 | L79: 0.50485 | M79: 0.9903 | N79: 1.0097 | O79: 0.9903 | P79: 1.0097 | Q79: 1.48545 | R79: 1.51455 | S79: 0.49515 | T79: 0.50485 | U79: 8.41755 | V79: 8.58245 | W79: 9.903 | X79: 10.097 | Y79: 6.9321 | Z79: 7.0679 | AA79: 5.9418 | AB79: 6.0582 | AC79: 4.45635 | AD79: 4.54365 | AE79: 5.44665 | AF79: 5.55335 | AG79: 5.44665 | AH79: 5.55335 | AI79: 5.44665 | AJ79: 5.55335 | AK79: 3.9612 | AL79: 4.0388 | AM79: 2.9709 | AN79: 3.0291 | AO79: 3.9612 | AP79: 4.0388 | AQ79: 2.9709 | AR79: 3.0291 | AS79: 2.47575 | AT79: 2.52425 | AU79: 1.9806 | AV79: 2.0194 | AW79: 1.9806 | AX79: 2.0194 | AY79: 1.9806 | AZ79: 2.0194 | BA79: 5 | BB79: 0 | BC79: 121 | BD79: 14 | BE79: 10 | BF79: 45 | BG79: 7 | BH79: 14 | BI79: 34 | BJ79: 26 | BK79: 12
A80: 150905 | C80: 73 | D80: 150905 | E80: DISTRITO NAVAN | F80: 1180 | H80: 584.277 | I80: 595.723 | K80: 3.9612 | L80: 4.0388 | M80: 3.9612 | N80: 4.0388 | O80: 4.45635 | P80: 4.54365 | Q80: 7.42725 | R80: 7.57275 | S80: 5.44665 | T80: 5.55335 | U80: 42.08775 | V80: 42.91225 | W80: 49.515 | X80: 50.485 | Y80: 32.6799 | Z80: 33.3201 | AA80: 50.5053 | AB80: 51.4947 | AC80: 47.5344 | AD80: 48.4656 | AE80: 38.6217 | AF80: 39.3783 | AG80: 42.5829 | AH80: 43.4171 | AI80: 44.5635 | AJ80: 45.4365 | AK80: 36.14595 | AL80: 36.85405 | AM80: 30.6993 | AN80: 31.3007 | AO80: 25.25265 | AP80: 25.74735 | AQ80: 35.15565 | AR80: 35.84435 | AS80: 15.8448 | AT80: 16.1552 | AU80: 36.14595 | AV80: 36.85405 | AW80: 16.8351 | AX80: 17.1649 | AY80: 14.8545 | AZ80: 15.1455 | BA80: 42 | BB80: 3 | BC80: 641 | BD80: 49 | BE80: 33 | BF80: 266 | BG80: 58 | BH80: 51 | BI80: 234 | BJ80: 151 | BK80: 80
B81: 05 | C81: 74 | D81: 5656 | E81: P.S. NAVAN | F81: 1180 | H81: 584.277 | I81: 595.723 | K81: 3.9612 | L81: 4.0388 | M81: 3.9612 | N81: 4.0388 | O81: 4.45635 | P81: 4.54365 | Q81: 7.42725 | R81: 7.57275 | S81: 5.44665 | T81: 5.55335 | U81: 42.08775 | V81: 42.91225 | W81: 49.515 | X81: 50.485 | Y81: 32.6799 | Z81: 33.3201 | AA81: 50.5053 | AB81: 51.4947 | AC81: 47.5344 | AD81: 48.4656 | AE81: 38.6217 | AF81: 39.3783 | AG81: 42.5829 | AH81: 43.4171 | AI81: 44.5635 | AJ81: 45.4365 | AK81: 36.14595 | AL81: 36.85405 | AM81: 30.6993 | AN81: 31.3007 | AO81: 25.25265 | AP81: 25.74735 | AQ81: 35.15565 | AR81: 35.84435 | AS81: 15.8448 | AT81: 16.1552 | AU81: 36.14595 | AV81: 36.85405 | AW81: 16.8351 | AX81: 17.1649 | AY81: 14.8545 | AZ81: 15.1455 | BA81: 42 | BB81: 3 | BC81: 641 | BD81: 49 | BE81: 33 | BF81: 266 | BG81: 58 | BH81: 51 | BI81: 234 | BJ81: 151 | BK81: 80
A82: 150906 | C82: 75 | D82: 150906 | E82: DISTRITO PACHANGARA | F82: 3600 | H82: 1782.54 | I82: 1817.46 | K82: 35.6508 | L82: 36.3492 | M82: 23.27205 | N82: 23.72795 | O82: 21.29145 | P82: 21.70855 | Q82: 22.7769 | R82: 23.2231 | S82: 32.6799 | T82: 33.3201 | U82: 152.5062 | V82: 155.4938 | W82: 173.3025 | X82: 176.6975 | Y82: 140.12745 | Z82: 142.87255 | AA82: 115.8651 | AB82: 118.1349 | AC82: 128.739 | AD82: 131.261 | AE82: 103.9815 | AF82: 106.0185 | AG82: 119.8263 | AH82: 122.1737 | AI82: 106.45725 | AJ82: 108.54275 | AK82: 97.0494 | AL82: 98.9506 | AM82: 91.1076 | AN82: 92.8924 | AO82: 102.9912 | AP82: 105.0088 | AQ82: 82.1949 | AR82: 83.8051 | AS82: 78.72885 | AT82: 80.27115 | AU82: 73.77735 | AV82: 75.22265 | AW82: 44.06835 | AX82: 44.93165 | AY82: 36.14595 | AZ82: 36.85405 | BA82: 78 | BB82: 6 | BC82: 1841 | BD82: 172 | BE82: 141 | BF82: 689 | BG82: 107 | BH82: 182 | BI82: 553 | BJ82: 412 | BK82: 284
B83: 05 | C83: 76 | D83: 5657 | E83: P.S. HUANCAHUASI | F83: 2088 | H83: 1033.8732 | I83: 1054.1268 | K83: 20.30115 | L83: 20.69885 | M83: 13.36905 | N83: 13.63095 | O83: 12.37875 | P83: 12.62125 | Q83: 13.36905 | R83: 13.63095 | S83: 18.8157 | T83: 19.1843 | U83: 88.63185 | V83: 90.36815 | W83: 100.0203 | X83: 101.9797 | Y83: 81.69975 | Z83: 83.30025 | AA83: 67.3404 | AB83: 68.6596 | AC83: 74.76765 | AD83: 76.23235 | AE83: 60.4083 | AF83: 61.5917 | AG83: 69.321 | AH83: 70.679 | AI83: 61.89375 | AJ83: 63.10625 | AK83: 56.4471 | AL83: 57.5529 | AM83: 52.98105 | AN83: 54.01895 | AO83: 59.91315 | AP83: 61.08685 | AQ83: 47.5344 | AR83: 48.4656 | AS83: 45.5538 | AT83: 46.4462 | AU83: 42.5829 | AV83: 43.4171 | AW83: 25.7478 | AX83: 26.2522 | AY83: 20.7963 | AZ83: 21.2037 | BA83: 45 | BB83: 4 | BC83: 1068 | BD83: 99 | BE83: 82 | BF83: 400 | BG83: 62 | BH83: 107 | BI83: 321 | BJ83: 241 | BK83: 164
B84: 05 | C84: 77 | D84: 5658 | E84: C.S. CHURIN | F84: 684 | H84: 338.6826 | I84: 345.3174 | K84: 6.9321 | L84: 7.0679 | M84: 4.45635 | N84: 4.54365 | O84: 3.9612 | P84: 4.0388 | Q84: 4.45635 | R84: 4.54365 | S84: 6.43695 | T84: 6.56305 | U84: 28.7187 | V84: 29.2813 | W84: 32.6799 | X84: 33.3201 | Y84: 26.7381 | Z84: 27.2619 | AA84: 21.7866 | AB84: 22.2134 | AC84: 24.26235 | AD84: 24.73765 | AE84: 19.806 | AF84: 20.194 | AG84: 22.7769 | AH84: 23.2231 | AI84: 20.30115 | AJ84: 20.69885 | AK84: 18.32055 | AL84: 18.67945 | AM84: 17.33025 | AN84: 17.66975 | AO84: 19.806 | AP84: 20.194 | AQ84: 15.8448 | AR84: 16.1552 | AS84: 14.8545 | AT84: 15.1455 | AU84: 13.8642 | AV84: 14.1358 | AW84: 8.41755 | AX84: 8.58245 | AY84: 6.9321 | AZ84: 7.0679 | BA84: 15 | BB84: 1 | BC84: 350 | BD84: 33 | BE84: 27 | BF84: 131 | BG84: 20 | BH84: 34 | BI84: 104 | BJ84: 75 | BK84: 54
B85: 05 | C85: 78 | D85: 5649 | E85: P.S. PACHANGARA | F85: 828 | H85: 409.9842 | I85: 418.0158 | K85: 8.41755 | L85: 8.58245 | M85: 5.44665 | N85: 5.55335 | O85: 4.9515 | P85: 5.0485 | Q85: 4.9515 | R85: 5.0485 | S85: 7.42725 | T85: 7.57275 | U85: 35.15565 | V85: 35.84435 | W85: 40.6023 | X85: 41.3977 | Y85: 31.6896 | Z85: 32.3104 | AA85: 26.7381 | AB85: 27.2619 | AC85: 29.709 | AD85: 30.291 | AE85: 23.7672 | AF85: 24.2328 | AG85: 27.7284 | AH85: 28.2716 | AI85: 24.26235 | AJ85: 24.73765 | AK85: 22.28175 | AL85: 22.71825 | AM85: 20.7963 | AN85: 21.2037 | AO85: 23.27205 | AP85: 23.72795 | AQ85: 18.8157 | AR85: 19.1843 | AS85: 18.32055 | AT85: 18.67945 | AU85: 17.33025 | AV85: 17.66975 | AW85: 9.903 | AX85: 10.097 | AY85: 8.41755 | AZ85: 8.58245 | BA85: 18 | BB85: 1 | BC85: 423 | BD85: 40 | BE85: 32 | BF85: 158 | BG85: 25 | BH85: 41 | BI85: 128 | BJ85: 96 | BK85: 66
C86: 79 | E86: PROVINCIA HUARAL | F86: 1158 | H86: 573.3837 | I86: 584.6163 | K86: 10.8933 | L86: 11.1067 | M86: 9.40785 | N86: 9.59215 | O86: 9.40785 | P86: 9.59215 | Q86: 7.42725 | R86: 7.57275 | S86: 7.42725 | T86: 7.57275 | U86: 54.4665 | V86: 55.5335 | W86: 43.5732 | X86: 44.4268 | Y86: 38.12655 | Z86: 38.87345 | AA86: 44.5635 | AB86: 45.4365 | AC86: 43.07805 | AD86: 43.92195 | AE86: 33.17505 | AF86: 33.82495 | AG86: 33.6702 | AH86: 34.3298 | AI86: 36.14595 | AJ86: 36.85405 | AK86: 36.6411 | AL86: 37.3589 | AM86: 30.20415 | AN86: 30.79585 | AO86: 25.25265 | AP86: 25.74735 | AQ86: 21.29145 | AR86: 21.70855 | AS86: 32.6799 | AT86: 33.3201 | AU86: 21.7866 | AV86: 22.2134 | AW86: 14.8545 | AX86: 15.1455 | AY86: 19.31085 | AZ86: 19.68915 | BA86: 18 | BB86: 1 | BC86: 599 | BD86: 44 | BE86: 39 | BF86: 234 | BG86: 25 | BH86: 49 | BI86: 169 | BJ86: 131 | BK86: 71
C87: 80 | D87: 150600 | E87: IHUARI - ACOTAMA | F87: 1158 | H87: 573.3837 | I87: 584.6163 | K87: 10.8933 | L87: 11.1067 | M87: 9.40785 | N87: 9.59215 | O87: 9.40785 | P87: 9.59215 | Q87: 7.42725 | R87: 7.57275 | S87: 7.42725 | T87: 7.57275 | U87: 54.4665 | V87: 55.5335 | W87: 43.5732 | X87: 44.4268 | Y87: 38.12655 | Z87: 38.87345 | AA87: 44.5635 | AB87: 45.4365 | AC87: 43.07805 | AD87: 43.92195 | AE87: 33.17505 | AF87: 33.82495 | AG87: 33.6702 | AH87: 34.3298 | AI87: 36.14595 | AJ87: 36.85405 | AK87: 36.6411 | AL87: 37.3589 | AM87: 30.20415 | AN87: 30.79585 | AO87: 25.25265 | AP87: 25.74735 | AQ87: 21.29145 | AR87: 21.70855 | AS87: 32.6799 | AT87: 33.3201 | AU87: 21.7866 | AV87: 22.2134 | AW87: 14.8545 | AX87: 15.1455 | AY87: 19.31085 | AZ87: 19.68915 | BA87: 18 | BB87: 1 | BC87: 599 | BD87: 44 | BE87: 39 | BF87: 234 | BG87: 25 | BH87: 49 | BI87: 169 | BJ87: 131 | BK87: 71
A88: 150606 | B88: 03 | C88: 81
C89: 82 | E89: MICRORED HUAURA | F89: 40207 | H89: 19908.49605 | I89: 20298.50395 | K89: 354.03225 | L89: 360.96775 | M89: 257.478 | N89: 262.522 | O89: 272.3325 | P89: 277.6675 | Q89: 325.8087 | R89: 332.1913 | S89: 296.59485 | T89: 302.40515 | U89: 1683.01485 | V89: 1715.98515 | W89: 1983.5709 | X89: 2022.4291 | Y89: 2007.83325 | Z89: 2047.16675 | AA89: 1775.6079 | AB89: 1810.3921 | AC89: 1655.7816 | AD89: 1688.2184 | AE89: 1377.01215 | AF89: 1403.98785 | AG89: 1347.7983 | AH89: 1374.2017 | AI89: 1309.1766 | AJ89: 1334.8234 | AK89: 1097.74755 | AL89: 1119.25245 | AM89: 959.10555 | AN89: 977.89445 | AO89: 844.23075 | AP89: 860.76925 | AQ89: 669.93795 | AR89: 683.06205 | AS89: 576.3546 | AT89: 587.6454 | AU89: 494.65485 | AV89: 504.34515 | AW89: 301.0512 | AX89: 306.9488 | AY89: 319.37175 | AZ89: 325.62825 | BA89: 681 | BB89: 54 | BC89: 20488 | BD89: 1965 | BE89: 2026 | BF89: 8810 | BG89: 927 | BH89: 2401 | BI89: 7287 | BJ89: 5118 | BK89: 2382
B90: 1 | C90: 83 | E90: MICRORED HUALMAY | F90: 89016 | H90: 44076.2724 | I90: 44939.7276 | K90: 698.1615 | L90: 711.8385 | M90: 594.67515 | N90: 606.32485 | O90: 605.0733 | P90: 616.9267 | Q90: 684.79245 | R90: 698.20755 | S90: 752.628 | T90: 767.372 | U90: 3544.2837 | V90: 3613.7163 | W90: 3872.073 | X90: 3947.927 | Y90: 3724.5183 | Z90: 3797.4817 | AA90: 3644.304 | AB90: 3715.696 | AC90: 3530.91465 | AD90: 3600.08535 | AE90: 3029.82285 | AF90: 3089.17715 | AG90: 3115.97895 | AH90: 3177.02105 | AI90: 3020.91015 | AJ90: 3080.08985 | AK90: 2399.99205 | AL90: 2447.00795 | AM90: 2267.29185 | AN90: 2311.70815 | AO90: 2228.175 | AP90: 2271.825 | AQ90: 1792.93815 | AR90: 1828.06185 | AS90: 1499.80935 | AT90: 1529.19065 | AU90: 1189.84545 | AV90: 1213.15455 | AW90: 847.6968 | AX90: 864.3032 | AY90: 1032.38775 | AZ90: 1052.61225 | BA90: 1443 | BB90: 114 | BC90: 44898 | BD90: 3824 | BE90: 3747 | BF90: 19222 | BG90: 1965 | BH90: 4530 | BI90: 16357 | BJ90: 11567 | BK90: 6256
B91: 2 | C91: 84 | E91: MICRORED SAYAN | F91: 30228 | H91: 14967.3942 | I91: 15260.6058 | K91: 241.6332 | L91: 246.3668 | M91: 218.36115 | N91: 222.63885 | O91: 255.99255 | P91: 261.00745 | Q91: 254.01195 | R91: 258.98805 | S91: 247.07985 | T91: 251.92015 | U91: 1330.9632 | V91: 1357.0368 | W91: 1416.62415 | X91: 1444.37585 | Y91: 1353.7401 | Z91: 1380.2599 | AA91: 1337.40015 | AB91: 1363.59985 | AC91: 1294.3221 | AD91: 1319.6779 | AE91: 1068.03855 | AF91: 1088.96145 | AG91: 1043.28105 | AH91: 1063.71895 | AI91: 944.25105 | AJ91: 962.74895 | AK91: 839.7744 | AL91: 856.2256 | AM91: 690.73425 | AN91: 704.26575 | AO91: 635.7726 | AP91: 648.2274 | AQ91: 525.8493 | AR91: 536.1507 | AS91: 434.24655 | AT91: 442.75345 | AU91: 360.4692 | AV91: 367.5308 | AW91: 236.6817 | AX91: 241.3183 | AY91: 238.16715 | AZ91: 242.83285 | BA91: 534 | BB91: 40 | BC91: 15478 | BD91: 1405 | BE91: 1366 | BF91: 6720 | BG91: 729 | BH91: 1682 | BI91: 5480 | BJ91: 3741 | BK91: 1706
B92: 3 | C92: 85 | E92: MICRORED VEGUETA | F92: 23978 | H92: 11872.7067 | I92: 12105.2933 | K92: 280.2549 | L92: 285.7451 | M92: 254.5071 | N92: 259.4929 | O92: 235.6914 | P92: 240.3086 | Q92: 233.21565 | R92: 237.78435 | S92: 247.07985 | T92: 251.92015 | U92: 975.94065 | V92: 995.05935 | W92: 1074.4755 | X92: 1095.5245 | Y92: 1090.3203 | Z92: 1111.6797 | AA92: 1040.8053 | AB92: 1061.1947 | AC92: 944.25105 | AD92: 962.74895 | AE92: 756.09405 | AF92: 770.90595 | AG92: 742.725 | AH92: 757.275 | AI92: 736.7832 | AJ92: 751.2168 | AK92: 640.7241 | AL92: 653.2759 | AM92: 554.07285 | AN92: 564.92715 | AO92: 525.35415 | AP92: 535.64585 | AQ92: 428.7999 | AR92: 437.2001 | AS92: 355.02255 | AT92: 361.97745 | AU92: 298.57545 | AV92: 304.42455 | AW92: 214.8951 | AX92: 219.1049 | AY92: 243.11865 | AZ92: 247.88135 | BA92: 467 | BB92: 37 | BC92: 11844 | BD92: 1063 | BE92: 1099 | BF92: 4993 | BG92: 635 | BH92: 1307 | BI92: 4215 | BJ92: 2874 | BK92: 1482
B93: 4 | C93: 86 | E93: MICRORED CHURIN - OYON | F93: 26841 | H93: 13290.32115 | I93: 13550.67885 | K93: 153.00135 | L93: 155.99865 | M93: 117.35055 | N93: 119.64945 | O93: 119.33115 | P93: 121.66885 | Q93: 143.5935 | R93: 146.4065 | S93: 159.93345 | T93: 163.06655 | U93: 1178.457 | V93: 1201.543 | W93: 1373.5461 | X93: 1400.4539 | Y93: 1019.51385 | Z93: 1039.48615 | AA93: 954.6492 | AB93: 973.3508 | AC93: 1089.82515 | AD93: 1111.17485 | AE93: 923.9499 | AF93: 942.0501 | AG93: 1036.8441 | AH93: 1057.1559 | AI93: 876.4155 | AJ93: 893.5845 | AK93: 760.5504 | AL93: 775.4496 | AM93: 684.79245 | AN93: 698.20755 | AO93: 612.9957 | AP93: 625.0043 | AQ93: 528.32505 | AR93: 538.67495 | AS93: 513.9657 | AT93: 524.0343 | AU93: 442.6641 | AV93: 451.3359 | AW93: 322.8378 | AX93: 329.1622 | AY93: 277.77915 | AZ93: 283.22085 | BA93: 587 | BB93: 42 | BC93: 14299 | BD93: 1360 | BE93: 1028 | BF93: 5800 | BG93: 802 | BH93: 1409 | BI93: 4827 | BJ93: 3524 | BK93: 1734

Sheet Pobla_EESS
D2: POBLACIÓN SEGÚN DISTRITOS Y EE.SS - 2019
D8: SIN MICRORED | K8: MICRORED HUALMAY
D9: DISTRITO | E9: POBLACIÓN | F9: EE.SS | G9: POBLACIÓN | H9: MASCULINO | I9: FEMENINO | K9: DISTRITO | L9: POBLACIÓN | M9: EE.SS | N9: POBLACIÓN | O9: MASCULINO | P9: FEMENINO
D10: HUACHO | E10: =G10 -> 46907 | F10: HOSPITAL HUACHO | G10: =VLOOKUP($F10,Poblacion!$E$8:$I$87,2,FALSE) -> 46907 | H10: =VLOOKUP($F10,Poblacion!$E$8:$I$87,4,FALSE) -> 23226.00105 | I10: =VLOOKUP($F10,Poblacion!$E$8:$I$87,5,FALSE) -> 23680.99895 | K10: HUALMAY | L10: =SUM(N10:N12) -> 30403 | M10: C.S. HUALMAY | N10: =VLOOKUP($M10,Poblacion!$E$8:$I$87,2,FALSE) -> 15202 | O10: =VLOOKUP($M10,Poblacion!$E$8:$I$87,4,FALSE) -> 7527.2703 | P10: =VLOOKUP($M10,Poblacion!$E$8:$I$87,5,FALSE) -> 7674.7297
D11: HUACHO | F11: CLINICA SAN PEDRO | G11: 0 | K11: HUALMAY | M11: P.S. DGO. MANDAMIENTO | N11: =VLOOKUP($M11,Poblacion!$E$8:$I$87,2,FALSE) -> 10641 | O11: =VLOOKUP($M11,Poblacion!$E$8:$I$87,4,FALSE) -> 5268.89115 | P11: =VLOOKUP($M11,Poblacion!$E$8:$I$87,5,FALSE) -> 5372.10885
D12: HUACHO | F12: ESSALUD GUSTAVO LA NATA | G12: 0 | K12: HUALMAY | M12: P.S. CAMPO ALEGRE | N12: =VLOOKUP($M12,Poblacion!$E$8:$I$87,2,FALSE) -> 4560 | O12: =VLOOKUP($M12,Poblacion!$E$8:$I$87,4,FALSE) -> 2257.884 | P12: =VLOOKUP($M12,Poblacion!$E$8:$I$87,5,FALSE) -> 2302.116
D13: HUACHO | F13: CLINICA SAN BARTOLOME | G13: 0 | K13: S.MARIA | L13: =SUM(N13:N17) -> 35882 | M13: C.S. SANTA MARIA | N13: =VLOOKUP($M13,Poblacion!$E$8:$I$87,2,FALSE) -> 10047 | O13: =VLOOKUP($M13,Poblacion!$E$8:$I$87,4,FALSE) -> 4974.77205 | P13: =VLOOKUP($M13,Poblacion!$E$8:$I$87,5,FALSE) -> 5072.22795
D14: HUACHO | F14: GOLD ESTANDAR EIRL. | G14: 0 | K14: S.MARIA | M14: P.S. CHONTA | N14: =VLOOKUP($M14,Poblacion!$E$8:$I$87,2,FALSE) -> 5382 | O14: =VLOOKUP($M14,Poblacion!$E$8:$I$87,4,FALSE) -> 2664.8973 | P14: =VLOOKUP($M14,Poblacion!$E$8:$I$87,5,FALSE) -> 2717.1027
D15: CARQUIN | F15: INSITUTO NACIONAL PENITENCIARIO CARQUIN | G15: 0 | K15: S.MARIA | M15: P.S. 1RO DE MAYO | N15: =VLOOKUP($M15,Poblacion!$E$8:$I$87,2,FALSE) -> 2871 | O15: =VLOOKUP($M15,Poblacion!$E$8:$I$87,4,FALSE) -> 1421.57565 | P15: =VLOOKUP($M15,Poblacion!$E$8:$I$87,5,FALSE) -> 1449.42435
F16: OTROS ESTABLECIMIENTOS | G16: 0 | K16: S.MARIA | M16: P.S. ZAPATA | N16: =VLOOKUP($M16,Poblacion!$E$8:$I$87,2,FALSE) -> 10406 | O16: =VLOOKUP($M16,Poblacion!$E$8:$I$87,4,FALSE) -> 5152.5309 | P16: =VLOOKUP($M16,Poblacion!$E$8:$I$87,5,FALSE) -> 5253.4691
D17: TOTAL SIN MICRORED | G17: =SUM(G10:G16) -> 46907 | H17: =SUM(H10:H16) -> 23226.00105 | I17: =SUM(I10:I16) -> 23680.99895 | K17: S.MARIA | M17: P.S. SAN BARTOLOME | N17: =VLOOKUP($M17,Poblacion!$E$8:$I$87,2,FALSE) -> 7176 | O17: =VLOOKUP($M17,Poblacion!$E$8:$I$87,4,FALSE) -> 3553.1964 | P17: =VLOOKUP($M17,Poblacion!$E$8:$I$87,5,FALSE) -> 3622.8036
D18: Elaboración: Área de Estadística - RIS Huaura Oyón. | K18: CARQUIN | L18: =N18 -> 7095 | M18: P.S. CARQUIN | N18: =VLOOKUP($M18,Poblacion!$E$8:$I$87,2,FALSE) -> 7095 | O18: =VLOOKUP($M18,Poblacion!$E$8:$I$87,4,FALSE) -> 3513.08925 | P18: =VLOOKUP($M18,Poblacion!$E$8:$I$87,5,FALSE) -> 3581.91075
K19: HUACHO | L19: =N19 -> 15636 | M19: C.S. MANZANARES | N19: =VLOOKUP($M19,Poblacion!$E$8:$I$87,2,FALSE) -> 15636 | O19: =VLOOKUP($M19,Poblacion!$E$8:$I$87,4,FALSE) -> 7742.1654 | P19: =VLOOKUP($M19,Poblacion!$E$8:$I$87,5,FALSE) -> 7893.8346
K20: TOTAL MCR HUALMAY | M20: TOTAL MICRORED HUALMAY | N20: =SUM(N10:N19) -> 89016 | O20: =SUM(O10:O19) -> 44076.2724 | P20: =SUM(P10:P19) -> 44939.7276
K21: =D18 -> Elaboración: Área de Estadística - RIS Huaura Oyón.
D24: MICRORED HUAURA | K24: MICRORED VEGUETA
D25: DISTRITO | E25: POBLACIÓN | F25: EE.SS | G25: POBLACIÓN | H25: MASCULINO | I25: FEMENINO | K25: DISTRITO | L25: POBLACIÓN | M25: EE.SS | N25: POBLACIÓN | O25: MASCULINO | P25: FEMENINO
D26: HUAURA | E26: =SUM(G26:G30) -> 37441 | F26: C.S. HUAURA | G26: =VLOOKUP($F26,Poblacion!$E$8:$I$87,2,FALSE) -> 18721 | H26: =VLOOKUP($F26,Poblacion!$E$8:$I$87,4,FALSE) -> 9269.70315 | I26: =VLOOKUP($F26,Poblacion!$E$8:$I$87,5,FALSE) -> 9451.29685 | K26: VEGUETA | L26: =SUM(N26:N31) -> 23978 | M26: C.S. VEGUETA | N26: =VLOOKUP($M26,Poblacion!$E$8:$I$87,2,FALSE) -> 6714 | O26: =VLOOKUP($M26,Poblacion!$E$8:$I$87,4,FALSE) -> 3324.4371 | P26: =VLOOKUP($M26,Poblacion!$E$8:$I$87,5,FALSE) -> 3389.5629
D27: HUAURA | F27: P.S. HUMAYA | G27: =VLOOKUP($F27,Poblacion!$E$8:$I$87,2,FALSE) -> 12356 | H27: =VLOOKUP($F27,Poblacion!$E$8:$I$87,4,FALSE) -> 6118.0734 | I27: =VLOOKUP($F27,Poblacion!$E$8:$I$87,5,FALSE) -> 6237.9266 | K27: VEGUETA | M27: P.S. MAZO | N27: =VLOOKUP($M27,Poblacion!$E$8:$I$87,2,FALSE) -> 2398 | O27: =VLOOKUP($M27,Poblacion!$E$8:$I$87,4,FALSE) -> 1187.3697 | P27: =VLOOKUP($M27,Poblacion!$E$8:$I$87,5,FALSE) -> 1210.6303
D28: HUAURA | F28: P.S. VILCAHUAURA | G28: =VLOOKUP($F28,Poblacion!$E$8:$I$87,2,FALSE) -> 3370 | H28: =VLOOKUP($F28,Poblacion!$E$8:$I$87,4,FALSE) -> 1668.6555 | I28: =VLOOKUP($F28,Poblacion!$E$8:$I$87,5,FALSE) -> 1701.3445 | K28: VEGUETA | M28: P.S. PRIMAVERA | N28: =VLOOKUP($M28,Poblacion!$E$8:$I$87,2,FALSE) -> 5275 | O28: =VLOOKUP($M28,Poblacion!$E$8:$I$87,4,FALSE) -> 2611.91625 | P28: =VLOOKUP($M28,Poblacion!$E$8:$I$87,5,FALSE) -> 2663.08375
D29: HUAURA | F29: P.S. PEÑICO | G29: =VLOOKUP($F29,Poblacion!$E$8:$I$87,2,FALSE) -> 2621 | H29: =VLOOKUP($F29,Poblacion!$E$8:$I$87,4,FALSE) -> 1297.78815 | I29: =VLOOKUP($F29,Poblacion!$E$8:$I$87,5,FALSE) -> 1323.21185 | K29: VEGUETA | M29: P.S. MARIATEGUI | N29: =VLOOKUP($M29,Poblacion!$E$8:$I$87,2,FALSE) -> 6234 | O29: =VLOOKUP($M29,Poblacion!$E$8:$I$87,4,FALSE) -> 3086.7651 | P29: =VLOOKUP($M29,Poblacion!$E$8:$I$87,5,FALSE) -> 3147.2349
D30: HUAURA | F30: P.S. EL SOCORRO | G30: =VLOOKUP($F30,Poblacion!$E$8:$I$87,2,FALSE) -> 373 | H30: =VLOOKUP($F30,Poblacion!$E$8:$I$87,4,FALSE) -> 184.69095 | I30: =VLOOKUP($F30,Poblacion!$E$8:$I$87,5,FALSE) -> 188.30905 | K30: VEGUETA | M30: P.S. MEDIO MUNDO | N30: =VLOOKUP($M30,Poblacion!$E$8:$I$87,2,FALSE) -> 3117 | O30: =VLOOKUP($M30,Poblacion!$E$8:$I$87,4,FALSE) -> 1543.38255 | P30: =VLOOKUP($M30,Poblacion!$E$8:$I$87,5,FALSE) -> 1573.61745
D31: AMBAR | E31: =SUM(G31:G32) -> 2766 | F31: C.S. AMBAR | G31: =VLOOKUP($F31,Poblacion!$E$8:$I$87,2,FALSE) -> 1656 | H31: =VLOOKUP($F31,Poblacion!$E$8:$I$87,4,FALSE) -> 819.9684 | I31: =VLOOKUP($F31,Poblacion!$E$8:$I$87,5,FALSE) -> 836.0316 | K31: VEGUETA | M31: P.S. TIROLER | N31: =VLOOKUP($M31,Poblacion!$E$8:$I$87,2,FALSE) -> 240 | O31: =VLOOKUP($M31,Poblacion!$E$8:$I$87,4,FALSE) -> 118.836 | P31: =VLOOKUP($M31,Poblacion!$E$8:$I$87,5,FALSE) -> 121.164
D32: AMBAR | F32: P.S. AYNACA | G32: =VLOOKUP($F32,Poblacion!$E$8:$I$87,2,FALSE) -> 1110 | H32: =VLOOKUP($F32,Poblacion!$E$8:$I$87,4,FALSE) -> 549.6165 | I32: =VLOOKUP($F32,Poblacion!$E$8:$I$87,5,FALSE) -> 560.3835 | K32: TOTAL MCR VEGUETA | N32: =SUM(N26:N31) -> 23978 | O32: =SUM(O26:O31) -> 11872.7067 | P32: =SUM(P26:P31) -> 12105.2933
D33: TOTAL MCR HUAURA | F33: TOTAL MICRORED HUAURA | G33: =SUM(G26:G32) -> 40207 | H33: =SUM(H26:H32) -> 19908.49605 | I33: =SUM(I26:I32) -> 20298.50395 | K33: =K21 -> Elaboración: Área de Estadística - RIS Huaura Oyón.
D34: =K21 -> Elaboración: Área de Estadística - RIS Huaura Oyón.
D38: MICRORED SAYAN | K38: MICRORED CHURIN OYÓN
D39: DISTRITO | E39: POBLACIÓN | F39: EE.SS | G39: POBLACIÓN | H39: MASCULINO | I39: FEMENINO | K39: DISTRITO | L39: POBLACIÓN | M39: EE.SS | N39: POBLACIÓN | O39: MASCULINO | P39: FEMENINO
D40: SAYAN | E40: =SUM(G40:G46) -> 25448 | F40: C.S. 9 DE OCTUBRE | G40: =VLOOKUP($F40,Poblacion!$E$8:$I$87,2,FALSE) -> 8398 | H40: =VLOOKUP($F40,Poblacion!$E$8:$I$87,4,FALSE) -> 4158.2697 | I40: =VLOOKUP($F40,Poblacion!$E$8:$I$87,5,FALSE) -> 4239.7303 | K40: PACHANGARA | L40: =SUM(N40:N42) -> 3600 | M40: P.S. HUANCAHUASI | N40: =VLOOKUP(M40,Poblacion!$E$5:$I$88,2,FALSE) -> 2088 | O40: =VLOOKUP(M40,Poblacion!$E$5:$I$88,4,FALSE) -> 1033.8732 | P40: =VLOOKUP(M40,Poblacion!$E$5:$I$88,5,FALSE) -> 1054.1268
D41: SAYAN | F41: P.S. LA MERCED | G41: =VLOOKUP($F41,Poblacion!$E$8:$I$87,2,FALSE) -> 6616 | H41: =VLOOKUP($F41,Poblacion!$E$8:$I$87,4,FALSE) -> 3275.9124 | I41: =VLOOKUP($F41,Poblacion!$E$8:$I$87,5,FALSE) -> 3340.0876 | K41: PACHANGARA | M41: C.S. CHURIN | N41: =VLOOKUP(M41,Poblacion!$E$5:$I$88,2,FALSE) -> 684 | O41: =VLOOKUP(M41,Poblacion!$E$5:$I$88,4,FALSE) -> 338.6826 | P41: =VLOOKUP(M41,Poblacion!$E$5:$I$88,5,FALSE) -> 345.3174
D42: SAYAN | F42: P.S. LA VILLA | G42: =VLOOKUP($F42,Poblacion!$E$8:$I$87,2,FALSE) -> 763 | H42: =VLOOKUP($F42,Poblacion!$E$8:$I$87,4,FALSE) -> 377.79945 | I42: =VLOOKUP($F42,Poblacion!$E$8:$I$87,5,FALSE) -> 385.20055 | K42: PACHANGARA | M42: P.S. PACHANGARA | N42: =VLOOKUP(M42,Poblacion!$E$5:$I$88,2,FALSE) -> 828 | O42: =VLOOKUP(M42,Poblacion!$E$5:$I$88,4,FALSE) -> 409.9842 | P42: =VLOOKUP(M42,Poblacion!$E$5:$I$88,5,FALSE) -> 418.0158
D43: SAYAN | F43: P.S. EL AHORCADO | G43: =VLOOKUP($F43,Poblacion!$E$8:$I$87,2,FALSE) -> 1018 | H43: =VLOOKUP($F43,Poblacion!$E$8:$I$87,4,FALSE) -> 504.0627 | I43: =VLOOKUP($F43,Poblacion!$E$8:$I$87,5,FALSE) -> 513.9373 | K43: OYON | L43: =SUM(N43:N47) -> 14399 | M43: P.S. RAPAZ | N43: =VLOOKUP(M43,Poblacion!$E$5:$I$88,2,FALSE) -> 11951 | O43: =VLOOKUP(M43,Poblacion!$E$5:$I$88,4,FALSE) -> 5917.53765 | P43: =VLOOKUP(M43,Poblacion!$E$5:$I$88,5,FALSE) -> 6033.46235
D44: SAYAN | F44: P.S. SAYAN | G44: =VLOOKUP($F44,Poblacion!$E$8:$I$87,2,FALSE) -> 6872 | H44: =VLOOKUP($F44,Poblacion!$E$8:$I$87,4,FALSE) -> 3402.6708 | I44: =VLOOKUP($F44,Poblacion!$E$8:$I$87,5,FALSE) -> 3469.3292 | K44: OYON | M44: C.S. OYON | N44: =VLOOKUP(M44,Poblacion!$E$5:$I$88,2,FALSE) -> 720 | O44: =VLOOKUP(M44,Poblacion!$E$5:$I$88,4,FALSE) -> 356.508 | P44: =VLOOKUP(M44,Poblacion!$E$5:$I$88,5,FALSE) -> 363.492
D45: SAYAN | F45: P.S. CHAMBARA | G45: =VLOOKUP($F45,Poblacion!$E$8:$I$87,2,FALSE) -> 1018 | H45: =VLOOKUP($F45,Poblacion!$E$8:$I$87,4,FALSE) -> 504.0627 | I45: =VLOOKUP($F45,Poblacion!$E$8:$I$87,5,FALSE) -> 513.9373 | K45: OYON | M45: P.S. MALLAY | N45: =VLOOKUP(M45,Poblacion!$E$5:$I$88,2,FALSE) -> 144 | O45: =VLOOKUP(M45,Poblacion!$E$5:$I$88,4,FALSE) -> 71.3016 | P45: =VLOOKUP(M45,Poblacion!$E$5:$I$88,5,FALSE) -> 72.6984
D46: SAYAN | F46: P.S. LA UNION | G46: =VLOOKUP($F46,Poblacion!$E$8:$I$87,2,FALSE) -> 763 | H46: =VLOOKUP($F46,Poblacion!$E$8:$I$87,4,FALSE) -> 377.79945 | I46: =VLOOKUP($F46,Poblacion!$E$8:$I$87,5,FALSE) -> 385.20055 | K46: OYON | M46: P.S. NAVA | N46: =VLOOKUP(M46,Poblacion!$E$5:$I$88,2,FALSE) -> 432 | O46: =VLOOKUP(M46,Poblacion!$E$5:$I$88,4,FALSE) -> 213.9048 | P46: =VLOOKUP(M46,Poblacion!$E$5:$I$88,5,FALSE) -> 218.0952
D47: L.PRADO | E47: =SUM(G47:G50) -> 2025 | F47: P.S. AUQUIMARCA | G47: =VLOOKUP($F47,Poblacion!$E$8:$I$87,2,FALSE) -> 101 | H47: =VLOOKUP($F47,Poblacion!$E$8:$I$87,4,FALSE) -> 50.01015 | I47: =VLOOKUP($F47,Poblacion!$E$8:$I$87,5,FALSE) -> 50.98985 | K47: OYON | M47: P.S. TINTA | N47: =VLOOKUP(M47,Poblacion!$E$5:$I$88,2,FALSE) -> 1152 | O47: =VLOOKUP(M47,Poblacion!$E$5:$I$88,4,FALSE) -> 570.4128 | P47: =VLOOKUP(M47,Poblacion!$E$5:$I$88,5,FALSE) -> 581.5872
D48: L.PRADO | F48: P.S. PARAN | G48: =VLOOKUP($F48,Poblacion!$E$8:$I$87,2,FALSE) -> 709 | H48: =VLOOKUP($F48,Poblacion!$E$8:$I$87,4,FALSE) -> 351.06135 | I48: =VLOOKUP($F48,Poblacion!$E$8:$I$87,5,FALSE) -> 357.93865 | K48: ANDAJES | L48: =N48 -> 1093 | M48: P.S. ANDAJES | N48: =VLOOKUP(M48,Poblacion!$E$5:$I$88,2,FALSE) -> 1093 | O48: =VLOOKUP(M48,Poblacion!$E$5:$I$88,4,FALSE) -> 541.19895 | P48: =VLOOKUP(M48,Poblacion!$E$5:$I$88,5,FALSE) -> 551.80105
D49: L.PRADO | F49: P.S. SANTA CRUZ | G49: =VLOOKUP($F49,Poblacion!$E$8:$I$87,2,FALSE) -> 405 | H49: =VLOOKUP($F49,Poblacion!$E$8:$I$87,4,FALSE) -> 200.53575 | I49: =VLOOKUP($F49,Poblacion!$E$8:$I$87,5,FALSE) -> 204.46425 | K49: CAUJUL | L49: =N49 -> 1033 | M49: P.S. CAUJUL | N49: =VLOOKUP(M49,Poblacion!$E$5:$I$88,2,FALSE) -> 1033 | O49: =VLOOKUP(M49,Poblacion!$E$5:$I$88,4,FALSE) -> 511.48995 | P49: =VLOOKUP(M49,Poblacion!$E$5:$I$88,5,FALSE) -> 521.51005
D50: L.PRADO | F50: P.S. HUANANGUI | G50: =VLOOKUP($F50,Poblacion!$E$8:$I$87,2,FALSE) -> 810 | H50: =VLOOKUP($F50,Poblacion!$E$8:$I$87,4,FALSE) -> 401.0715 | I50: =VLOOKUP($F50,Poblacion!$E$8:$I$87,5,FALSE) -> 408.9285 | K50: NAVAN | L50: 1180 | M50: P.S. NAVAN | N50: =VLOOKUP(M50,Poblacion!$E$5:$I$88,2,FALSE) -> 1180 | O50: =VLOOKUP(M50,Poblacion!$E$5:$I$88,4,FALSE) -> 584.277 | P50: =VLOOKUP(M50,Poblacion!$E$5:$I$88,5,FALSE) -> 595.723
D51: COCHAMARCA | E51: =SUM(G51:G53) -> 1597 | F51: P.S. COCHAMARCA | G51: =VLOOKUP($F51,Poblacion!$E$8:$I$87,2,FALSE) -> 687 | H51: =VLOOKUP($F51,Poblacion!$E$8:$I$87,4,FALSE) -> 340.16805 | I51: =VLOOKUP($F51,Poblacion!$E$8:$I$87,5,FALSE) -> 346.83195 | K51: CHECRAS | L51: 1782 | M51: P.S. PUÑUN | N51: =VLOOKUP(M51,Poblacion!$E$5:$I$88,2,FALSE) -> 1782 | O51: =VLOOKUP(M51,Poblacion!$E$5:$I$88,4,FALSE) -> 882.3573 | P51: =VLOOKUP(M51,Poblacion!$E$5:$I$88,5,FALSE) -> 899.6427
D52: COCHAMARCA | F52: P.S. COLCAPAMPA | G52: =VLOOKUP($F52,Poblacion!$E$8:$I$87,2,FALSE) -> 751 | H52: =VLOOKUP($F52,Poblacion!$E$8:$I$87,4,FALSE) -> 371.85765 | I52: =VLOOKUP($F52,Poblacion!$E$8:$I$87,5,FALSE) -> 379.14235 | K52: PACCHO | L52: =SUM(N52:N55) -> 2269 | M52: P.S. PACCHO | N52: =VLOOKUP(M52,Poblacion!$E$5:$I$88,2,FALSE) -> 862 | O52: =VLOOKUP(M52,Poblacion!$E$5:$I$88,4,FALSE) -> 426.8193 | P52: =VLOOKUP(M52,Poblacion!$E$5:$I$88,5,FALSE) -> 435.1807
D53: COCHAMARCA | F53: P.S. YARUCAYA | G53: =VLOOKUP($F53,Poblacion!$E$8:$I$87,2,FALSE) -> 159 | H53: =VLOOKUP($F53,Poblacion!$E$8:$I$87,4,FALSE) -> 78.72885 | I53: =VLOOKUP($F53,Poblacion!$E$8:$I$87,5,FALSE) -> 80.27115 | K53: PACCHO | M53: P.S. LACSANGA | N53: =VLOOKUP(M53,Poblacion!$E$5:$I$88,2,FALSE) -> 635 | O53: =VLOOKUP(M53,Poblacion!$E$5:$I$88,4,FALSE) -> 314.42025 | P53: =VLOOKUP(M53,Poblacion!$E$5:$I$88,5,FALSE) -> 320.57975
D54: IHUARI - ACOTAMA | E54: =SUM(G54) -> 1158 | F54: IHUARI - ACOTAMA | G54: =VLOOKUP($F54,Poblacion!$E$8:$I$87,2,FALSE) -> 1158 | H54: =VLOOKUP($F54,Poblacion!$E$8:$I$87,4,FALSE) -> 573.3837 | I54: =VLOOKUP($F54,Poblacion!$E$8:$I$87,5,FALSE) -> 584.6163 | K54: PACCHO | M54: P.S. AYARANGA | N54: =VLOOKUP(M54,Poblacion!$E$5:$I$88,2,FALSE) -> 432 | O54: =VLOOKUP(M54,Poblacion!$E$5:$I$88,4,FALSE) -> 213.9048 | P54: =VLOOKUP(M54,Poblacion!$E$5:$I$88,5,FALSE) -> 218.0952
D55: TOTAL MICRORED SAYAN | G55: =SUM(G40:G54) -> 30228 | H55: =SUM(H40:H54) -> 14967.3942 | I55: =SUM(I40:I54) -> 15260.6058 | K55: PACCHO | M55: P.S. MUZGA | N55: =VLOOKUP(M55,Poblacion!$E$5:$I$88,2,FALSE) -> 340 | O55: =VLOOKUP(M55,Poblacion!$E$5:$I$88,4,FALSE) -> 168.351 | P55: =VLOOKUP(M55,Poblacion!$E$5:$I$88,5,FALSE) -> 171.649
D56: =K33 -> Elaboración: Área de Estadística - RIS Huaura Oyón. | K56: S.LEONOR | L56: =SUM(N56:N58) -> 1485 | M56: P.S. CHIUCHIN | N56: =VLOOKUP(M56,Poblacion!$E$5:$I$88,2,FALSE) -> 802 | O56: =VLOOKUP(M56,Poblacion!$E$5:$I$88,4,FALSE) -> 397.1103 | P56: =VLOOKUP(M56,Poblacion!$E$5:$I$88,5,FALSE) -> 404.8897
K57: S.LEONOR | M57: P.S. PARQUIN | N57: =VLOOKUP(M57,Poblacion!$E$5:$I$88,2,FALSE) -> 327 | O57: =VLOOKUP(M57,Poblacion!$E$5:$I$88,4,FALSE) -> 161.91405 | P57: =VLOOKUP(M57,Poblacion!$E$5:$I$88,5,FALSE) -> 165.08595
K58: S.LEONOR | M58: P.S. JUCUL | N58: =VLOOKUP(M58,Poblacion!$E$5:$I$88,2,FALSE) -> 356 | O58: =VLOOKUP(M58,Poblacion!$E$5:$I$88,4,FALSE) -> 176.2734 | P58: =VLOOKUP(M58,Poblacion!$E$5:$I$88,5,FALSE) -> 179.7266
K59: TOTAL MICRORED CHURIN - OYON | N59: =SUM(N40:N58) -> 26841 | O59: =SUM(O40:O58) -> 13290.32115 | P59: =SUM(P40:P58) -> 13550.67885
K60: =K33 -> Elaboración: Área de Estadística - RIS Huaura Oyón.
